Document Date,Purchase Order No,Line Item No,Supplier ID,Supplier Name,Pro Class,Pro Class Description,Description of Goods (Purpose of expenditure look up),Service/Department   (SAP Hierarchy Position),Expense Area (cost centre desc),Net Order Value Over 5000.00 (line item value shown here),GL Code,Cost Centre/WBS
16/01/2020,ZAV673085,1,12351,Getech,270000,Information Communication Technology  ,Information and Communications Technology,IT AVA Non - SLA,IT AVA Non - SLA,"5,056.00",402001,13001
16/01/2020,ZAV673085,2,12351,Getech,270000,Information Communication Technology  ,Information and Communications Technology,IT AVA Non - SLA,IT AVA Non - SLA,480.00,402001,13001
16/01/2020,ZAV673085,3,12351,Getech,270000,Information Communication Technology  ,Information and Communications Technology,IT AVA Non - SLA,IT AVA Non - SLA,160.00,402001,13001
16/01/2020,ZAV673085,4,12351,Getech,270000,Information Communication Technology  ,Information and Communications Technology,IT AVA Non - SLA,IT AVA Non - SLA,544.00,402001,13001
16/01/2020,ZAV673085,5,12351,Getech,270000,Information Communication Technology  ,Information and Communications Technology,IT AVA Non - SLA,IT AVA Non - SLA,"1,650.00",402001,13001
24/01/2020,ZAV673450,1,12351,Getech,270000,Information Communication Technology  ,Information and Communications Technology,IT AVA Non - SLA,IT AVA Non - SLA,"9,480.00",402001,13001
24/01/2020,ZAV673450,2,12351,Getech,270000,Information Communication Technology  ,Information and Communications Technology,IT AVA Non - SLA,IT AVA Non - SLA,900.00,402001,13001
24/01/2020,ZAV673450,3,12351,Getech,270000,Information Communication Technology  ,Information and Communications Technology,IT AVA Non - SLA,IT AVA Non - SLA,300.00,402001,13001
24/01/2020,ZAV673450,4,12351,Getech,270000,Information Communication Technology  ,Information and Communications Technology,IT AVA Non - SLA,IT AVA Non - SLA,"1,020.00",402001,13001
24/01/2020,ZAV673450,5,12351,Getech,270000,Information Communication Technology  ,Information and Communications Technology,IT AVA Non - SLA,IT AVA Non - SLA,"1,650.00",402001,13001
29/01/2020,ZAV673632,1,12402,VeryPC Ltd,181800,Environmental Services Technical Equipment ,Furniture and Equipment,IT AVA Non - SLA,IT AVA Non - SLA,999.00,400110,13001
29/01/2020,ZAV673632,2,12402,VeryPC Ltd,181800,Environmental Services Technical Equipment ,Furniture and Equipment,IT AVA Non - SLA,IT AVA Non - SLA,"7,110.00",400110,13001
06/02/2020,ZAV674081,1,12351,Getech,181800,Environmental Services Technical Equipment ,Furniture and Equipment,IT AVA Non - SLA,IT AVA Non - SLA,"4,740.00",400110,13001
06/02/2020,ZAV674081,2,12351,Getech,181800,Environmental Services Technical Equipment ,Furniture and Equipment,IT AVA Non - SLA,IT AVA Non - SLA,450.00,400110,13001
06/02/2020,ZAV674081,3,12351,Getech,181800,Environmental Services Technical Equipment ,Furniture and Equipment,IT AVA Non - SLA,IT AVA Non - SLA,150.00,400110,13001
06/02/2020,ZAV674081,4,12351,Getech,181800,Environmental Services Technical Equipment ,Furniture and Equipment,IT AVA Non - SLA,IT AVA Non - SLA,510.00,400110,13001
06/02/2020,ZAV674081,5,12351,Getech,181800,Environmental Services Technical Equipment ,Furniture and Equipment,IT AVA Non - SLA,IT AVA Non - SLA,825.00,400110,13001
12/02/2020,ZAV674354,1,1162,RM Education plc,210000,Furniture & Soft Furnishings  ,Furniture and Equipment,IT AVA Non - SLA,IT AVA Non - SLA,"8,788.26",400105,13001
12/02/2020,ZAV674354,2,1162,RM Education plc,210000,Furniture & Soft Furnishings  ,Furniture and Equipment,IT AVA Non - SLA,IT AVA Non - SLA,6.00,400105,13001
26/02/2020,ZAV675118,1,12351,Getech,181800,Environmental Services Technical Equipment ,Furniture and Equipment,IT AVA Non - SLA,IT AVA Non - SLA,"4,740.00",400110,13001
26/02/2020,ZAV675118,2,12351,Getech,181800,Environmental Services Technical Equipment ,Furniture and Equipment,IT AVA Non - SLA,IT AVA Non - SLA,450.00,400110,13001
26/02/2020,ZAV675118,3,12351,Getech,181800,Environmental Services Technical Equipment ,Furniture and Equipment,IT AVA Non - SLA,IT AVA Non - SLA,150.00,400110,13001
26/02/2020,ZAV675118,4,12351,Getech,181800,Environmental Services Technical Equipment ,Furniture and Equipment,IT AVA Non - SLA,IT AVA Non - SLA,510.00,400110,13001
26/02/2020,ZAV675118,5,12351,Getech,181800,Environmental Services Technical Equipment ,Furniture and Equipment,IT AVA Non - SLA,IT AVA Non - SLA,825.00,400110,13001
27/02/2020,ZAV675199,1,12351,Getech,270000,Information Communication Technology  ,Information and Communications Technology,IT AVA Non - SLA,IT AVA Non - SLA,"4,740.00",402001,13001
27/02/2020,ZAV675199,2,12351,Getech,270000,Information Communication Technology  ,Information and Communications Technology,IT AVA Non - SLA,IT AVA Non - SLA,450.00,402001,13001
27/02/2020,ZAV675199,3,12351,Getech,270000,Information Communication Technology  ,Information and Communications Technology,IT AVA Non - SLA,IT AVA Non - SLA,150.00,402001,13001
27/02/2020,ZAV675199,4,12351,Getech,270000,Information Communication Technology  ,Information and Communications Technology,IT AVA Non - SLA,IT AVA Non - SLA,510.00,402001,13001
27/02/2020,ZAV675199,5,12351,Getech,270000,Information Communication Technology  ,Information and Communications Technology,IT AVA Non - SLA,IT AVA Non - SLA,825.00,402001,13001
05/03/2020,ZAV675596,1,12351,Getech,270000,Information Communication Technology  ,Information and Communications Technology,IT AVA Non - SLA,IT AVA Non - SLA,"5,250.00",402001,13001
05/03/2020,ZAV675596,2,12351,Getech,270000,Information Communication Technology  ,Information and Communications Technology,IT AVA Non - SLA,IT AVA Non - SLA,"1,020.00",402001,13001
05/03/2020,ZAV675596,3,12351,Getech,270000,Information Communication Technology  ,Information and Communications Technology,IT AVA Non - SLA,IT AVA Non - SLA,"4,740.00",402001,13001
05/03/2020,ZAV675596,4,12351,Getech,270000,Information Communication Technology  ,Information and Communications Technology,IT AVA Non - SLA,IT AVA Non - SLA,900.00,402001,13001
05/03/2020,ZAV675596,5,12351,Getech,270000,Information Communication Technology  ,Information and Communications Technology,IT AVA Non - SLA,IT AVA Non - SLA,300.00,402001,13001
11/03/2020,ZAV675950,1,1162,RM Education plc,210000,Furniture & Soft Furnishings  ,Furniture and Equipment,IT AVA Non - SLA,IT AVA Non - SLA,"26,364.78",400105,13001
11/03/2020,ZAV675950,2,1162,RM Education plc,210000,Furniture & Soft Furnishings  ,Furniture and Equipment,IT AVA Non - SLA,IT AVA Non - SLA,12.00,400105,13001
30/03/2020,ZAV676764,1,4512,Redstor Limited,270000,Information Communication Technology  ,Information and Communications Technology,IT AVA Service,IT AVA Service,"26,880.00",402001,11417
06/01/2020,ZES672563,1,544,Phoenix Software Ltd,270000,Information Communication Technology  ,Information and Communications Technology,IT Infrastructure,IT Infrastructure,"5,260.19",402002,11324
15/01/2020,ZES672972,1,544,Phoenix Software Ltd,270000,Information Communication Technology  ,Information and Communications Technology,IT Main,IT Main,"14,881.32",402002,11073
15/01/2020,ZES673003,1,544,Phoenix Software Ltd,270000,Information Communication Technology  ,Information and Communications Technology,IT Main,IT Main,"5,938.00",402002,11073
05/03/2020,ZES675528,1,4799,Aligned Assets Limited,270000,Information Communication Technology  ,Information and Communications Technology,Spatial Intelligence,Spatial Intelligence,"9,576.49",402001,11973
20/03/2020,ZES676415,1,7753,Netcall Technology Limited,390000,"Works - Construction, Repair & Maintenance  ",Fees and Charges,IT Infrastructure,IT Infrastructure,"10,350.00",401017,11324
20/03/2020,ZES676415,1,7753,Netcall Technology Limited,390000,"Works - Construction, Repair & Maintenance  ",Fees and Charges,IT Traded (SHG),IT Traded (SHG),"10,350.00",401017,12106
20/03/2020,ZES676452,1,544,Phoenix Software Ltd,270000,Information Communication Technology  ,Information and Communications Technology,IT Main,IT Main,"15,864.00",402001,11073
24/03/2020,ZES676562,1,7753,Netcall Technology Limited,270000,Information Communication Technology  ,Information and Communications Technology,IT Infrastructure,IT Infrastructure,"31,050.00",402010,11324
10/03/2020,ZFC675845,1,3529,Totally Local Company Ltd,130000,Cleaning & Janitorial  ,Cleaning,SPB Operational Est.,SPB Operational Est.,"5,100.00",201602,11662
13/03/2020,ZFC676079,1,588,H Jenkinson & Co Ltd,210000,Furniture & Soft Furnishings  ,Furniture and Equipment,#N/A,#N/A,"35,221.27",400100,C.11504.013
20/01/2020,ZHS673225,1,13870,Stanbridge Interiors Limited,390000,"Works - Construction, Repair & Maintenance  ",Capital Expenditure - Works,#N/A,#N/A,"9,950.00",200304,C.10937.002
20/01/2020,ZHS673227,1,13119,Fire Safety Solutions Ltd,390000,"Works - Construction, Repair & Maintenance  ",Capital Expenditure - Works,#N/A,#N/A,"5,020.00",200311,C.11617.033
09/03/2020,ZPC675703,1,11021,The Laurus Trust (Cheadle Hulm,261400,Human Resources Temporary & Agency Staff ,Agency Staff,Pendlebury PRU,Pendlebury PRU,"2,875.50",100290,10318
09/03/2020,ZPC675703,2,11021,The Laurus Trust (Cheadle Hulm,261400,Human Resources Temporary & Agency Staff ,Agency Staff,Cedars PRU,Cedars PRU,"1,917.00",100290,10317
09/03/2020,ZPC675703,3,11021,The Laurus Trust (Cheadle Hulm,261400,Human Resources Temporary & Agency Staff ,Agency Staff,Pendlebury PRU,Pendlebury PRU,"2,875.50",100290,10318
09/03/2020,ZPC675703,4,11021,The Laurus Trust (Cheadle Hulm,261400,Human Resources Temporary & Agency Staff ,Agency Staff,Cedars PRU,Cedars PRU,"1,917.00",100290,10317
09/03/2020,ZPC675703,5,11021,The Laurus Trust (Cheadle Hulm,261400,Human Resources Temporary & Agency Staff ,Agency Staff,Pendlebury PRU,Pendlebury PRU,"2,875.50",100290,10318
09/03/2020,ZPC675703,6,11021,The Laurus Trust (Cheadle Hulm,261400,Human Resources Temporary & Agency Staff ,Agency Staff,Cedars PRU,Cedars PRU,"1,917.00",100290,10317
09/03/2020,ZPC675703,7,11021,The Laurus Trust (Cheadle Hulm,261400,Human Resources Temporary & Agency Staff ,Agency Staff,Pendlebury PRU,Pendlebury PRU,"2,875.50",100290,10318
09/03/2020,ZPC675703,8,11021,The Laurus Trust (Cheadle Hulm,261400,Human Resources Temporary & Agency Staff ,Agency Staff,Cedars PRU,Cedars PRU,"1,917.00",100290,10317
09/03/2020,ZPC675703,9,11021,The Laurus Trust (Cheadle Hulm,261400,Human Resources Temporary & Agency Staff ,Agency Staff,Pendlebury PRU,Pendlebury PRU,"2,875.50",100290,10318
09/03/2020,ZPC675703,10,11021,The Laurus Trust (Cheadle Hulm,261400,Human Resources Temporary & Agency Staff ,Agency Staff,Cedars PRU,Cedars PRU,"1,917.00",100290,10317
23/01/2020,ZSA673440,1,2209,FR Monkhouse Ltd,140000,Clothing  ,Clothing Uniforms and Laundry,Social Funds - Prog,Social Funds - Prog,"5,000.00",400606,12705
17/03/2020,ZSA676186,1,8,Arco (Manchester),140000,Clothing  ,Clothing Uniforms and Laundry,TM REaCH,TM REaCH,"7,760.20",400604,12714
06/01/2020,ZSB672561,1,3529,Totally Local Company Ltd,111200,Catering Food & Beverages ,Catering Supplies,Highfields PRU,Highfields PRU,"5,048.84",400422,10329
11/02/2020,ZSB674229,1,14055,Stockport CCTV,390000,"Works - Construction, Repair & Maintenance  ",Repairs and Maintenance,Highfields PRU,Highfields PRU,"11,975.00",200160,10329
17/01/2020,ZZC673119,1,10657,Tales Toolkit Ltd,150000,Consultancy   ,Professional Fees,SI M&B Grant,SI M&B Grant,"7,200.00",401007,13041
20/01/2020,ZZC673192,1,14008,Southend Borough Council,320000,Social Community Care Supplies & Services  ,Care Payments,RAA Adoption Count,RAA Adoption Count,"43,000.00",530306,12957
20/01/2020,ZZC673193,1,11242,Gateway Psychology Ltd,999999,Fees and Charges,Fees and Charges,RAA - ASF Grant,RAA - ASF Grant,"7,875.00",401035,12968
20/01/2020,ZZC673194,1,7270,BARNARDOS NORTH WEST,320000,Social Community Care Supplies & Services  ,Care Payments,RAA Adoption Count,RAA Adoption Count,"31,620.00",530306,12957
20/01/2020,ZZC673209,1,5423,WILTSHIRE COUNTY COUNCIL,320000,Social Community Care Supplies & Services  ,Care Payments,RAA Adoption Count,RAA Adoption Count,"27,000.00",530306,12957
21/01/2020,ZZC673296,1,7362,The Heatons Conference Centre,190000,Facilities & Management Services  ,Office Expenses,RAA Adoption Count,RAA Adoption Count,"5,076.00",400705,12957
29/01/2020,ZZC673641,1,11242,Gateway Psychology Ltd,999999,Fees and Charges,Fees and Charges,RAA - ASF Grant,RAA - ASF Grant,"8,134.00",401035,12968
29/01/2020,ZZC673649,1,13062,Education and Health Partnersh,999999,Fees and Charges,Fees and Charges,RAA - ASF Grant,RAA - ASF Grant,"6,210.00",401035,12968
29/01/2020,ZZC673650,1,12706,NEW ROOTS THERAPY NW,999999,Fees and Charges,Fees and Charges,RAA - ASF Grant,RAA - ASF Grant,"9,825.50",401035,12968
11/02/2020,ZZC674203,1,12775,Daydawn Therapeutic Services,999999,Fees and Charges,Fees and Charges,RAA - ASF Grant,RAA - ASF Grant,"5,760.00",401035,12968
11/02/2020,ZZC674307,1,3763,IDOX Information Solutions,200000,Financial Services  ,Fees and Charges,Early Implementer EY,Early Implementer EY,"13,474.00",402401,12903
13/02/2020,ZZC674423,1,10572,Cranage Hall,261500,Human Resources Training & Conferences ,Expenses and Allowances,SI - Advisers,SI - Advisers,"14,822.00",402201,10727
13/02/2020,ZZC674559,1,10776,Z-Arts,261500,Human Resources Training & Conferences ,Fees and Charges,Incl - Sch Link Prog,Incl - Sch Link Prog,264.00,401024,10692
13/02/2020,ZZC674559,2,10776,Z-Arts,261500,Human Resources Training & Conferences ,Fees and Charges,Incl - Sch Link Prog,Incl - Sch Link Prog,"4,635.68",401024,10692
13/02/2020,ZZC674559,3,10776,Z-Arts,261500,Human Resources Training & Conferences ,Fees and Charges,Incl - Sch Link Prog,Incl - Sch Link Prog,"5,150.75",401024,10692
14/02/2020,ZZC674633,1,13686,DEVON COUNTY COUNCIL,320000,Social Community Care Supplies & Services  ,Care Payments,RAA Adoption Count,RAA Adoption Count,"27,000.00",530306,12957
14/02/2020,ZZC674634,1,12106,KMS Media,190000,Facilities & Management Services  ,Office Expenses,RAA Adoption Count,RAA Adoption Count,"7,522.60",400700,12957
19/02/2020,ZZC674760,1,14058,Chinese Health Information Cen,261100,Human Resources Interpretation & Translation ,Professional Fees,Incl - S.I.U - Perip,Incl - S.I.U - Perip,"5,482.75",401023,10307
19/02/2020,ZZC674761,1,5555,MANCHESTER DEAF CENTRE LTD,261100,Human Resources Interpretation & Translation ,Professional Fees,Incl - S.I.U - Perip,Incl - S.I.U - Perip,"5,568.33",401023,10307
25/02/2020,ZZC675075,1,8766,ADOPTION MATTERS NORTHWEST,999999,Fees and Charges,Fees and Charges,RAA - ASF Grant,RAA - ASF Grant,"9,879.20",401035,12968
25/02/2020,ZZC675076,1,11242,Gateway Psychology Ltd,999999,Fees and Charges,Fees and Charges,RAA - ASF Grant,RAA - ASF Grant,"8,165.50",401035,12968
01/03/2020,ZZC675287,1,3704,Belle Vue (Manchester) Ltd,381600,Vehicle Management Hire/Leasing ,Leasing /Transport Hire,Incl - Sch Link Prog,Incl - Sch Link Prog,"10,350.00",300302,10692
04/03/2020,ZZC675486,1,12675,Tiptoes Child Therapy Services,999999,Fees and Charges,Fees and Charges,RAA - ASF Grant,RAA - ASF Grant,"11,990.00",401035,12968
04/03/2020,ZZC675489,1,13020,Intraquest Limited,999999,Fees and Charges,Fees and Charges,RAA - ASF Grant,RAA - ASF Grant,"5,118.00",401035,12968
04/03/2020,ZZC675490,1,8766,ADOPTION MATTERS NORTHWEST,999999,Fees and Charges,Fees and Charges,RAA - ASF Grant,RAA - ASF Grant,"9,554.00",401035,12968
04/03/2020,ZZC675491,1,12675,Tiptoes Child Therapy Services,999999,Fees and Charges,Fees and Charges,RAA - ASF Grant,RAA - ASF Grant,"5,000.00",401035,12968
04/03/2020,ZZC675493,1,12944,Sue Smith,999999,Fees and Charges,Fees and Charges,RAA - ASF Grant,RAA - ASF Grant,"6,030.00",401035,12968
04/03/2020,ZZC675494,1,11242,Gateway Psychology Ltd,999999,Fees and Charges,Fees and Charges,RAA - ASF Grant,RAA - ASF Grant,"5,796.00",401035,12968
09/03/2020,ZZC675781,1,11190,Social Care Network Solutions,390000,"Works - Construction, Repair & Maintenance  ",Fees and Charges,RAA Adoption Count,RAA Adoption Count,"34,917.00",401017,12957
13/03/2020,ZZC676109,1,12793,Aspire Therapy Services Ltd,999999,Fees and Charges,Fees and Charges,RAA - ASF Grant,RAA - ASF Grant,"5,000.00",401035,12968
19/03/2020,ZZC676325,1,5555,MANCHESTER DEAF CENTRE LTD,390000,"Works - Construction, Repair & Maintenance  ",Fees and Charges,Incl - S.I.U - Perip,Incl - S.I.U - Perip,"5,399.15",401021,10307
20/03/2020,ZZC676434,1,12646,Child in Mind Ltd,999999,Fees and Charges,Fees and Charges,RAA - ASF Grant,RAA - ASF Grant,"8,260.00",401035,12968
20/03/2020,ZZC676435,1,12298,One Education Ltd,150000,Consultancy   ,Professional Fees,RAA Adoption Count,RAA Adoption Count,"15,210.00",401020,12957
23/03/2020,ZZC676527,1,9159,TRAFFORD MBC,999999,Fees and Charges,Fees and Charges,SG - Child Prot-Lscb,SG - Child Prot-Lscb,"12,500.00",401035,11424
30/03/2020,ZZC676761,1,12298,One Education Ltd,999999,Fees and Charges,Fees and Charges,RAA - ASF Grant,RAA - ASF Grant,"5,770.59",401036,12968
30/03/2020,ZZC676762,1,12298,One Education Ltd,999999,Fees and Charges,Fees and Charges,RAA - ASF Grant,RAA - ASF Grant,"5,693.59",401035,12968
30/03/2020,ZZC676763,1,13020,Intraquest Limited,999999,Fees and Charges,Fees and Charges,RAA - ASF Grant,RAA - ASF Grant,"8,549.00",401035,12968
02/01/2020,ZZH672466,1,12608,Liquidlogic Limited,270000,Information Communication Technology  ,Information and Communications Technology,IT Liquid Logic Proj,IT Liquid Logic Proj,"17,250.00",402002,12958
02/01/2020,ZZH672467,1,9955,Me Learning Ltd,270000,Information Communication Technology  ,Information and Communications Technology,IT Liquid Logic Proj,IT Liquid Logic Proj,"32,000.00",402002,12958
06/01/2020,ZZH672566,1,6748,GEORGE COX & SONS LTD,390000,Supplies and services,Supplies and services,#N/A,#N/A,"20,010.53",401600,C.01258.203
06/01/2020,ZZH672579,1,6967,Wilde Consultants Ltd,150000,Consultancy   ,Professional Fees,Network Assets Staff,Network Assets Staff,"23,850.00",401007,11959
07/01/2020,ZZH672597,1,9318,Hays Specialist Recruitment Lt,270000,Information Communication Technology  ,Information and Communications Technology,IT Liquid Logic Proj,IT Liquid Logic Proj,"45,000.00",402002,12958
07/01/2020,ZZH672602,1,13993,Tordan Healthcare Ltd,320000,Social Community Care Supplies & Services  ,Care Payments,DP - Respite,DP - Respite,"9,672.00",530335,11513
07/01/2020,ZZH672634,1,13998,Lucid Outdoor Limited,181800,Environmental Services Technical Equipment ,Furniture and Equipment,#N/A,#N/A,"54,979.20",400110,C.10941
07/01/2020,ZZH672640,1,7025,CBRE Limited,390000,Supplies and services,Supplies and services,#N/A,#N/A,"17,580.00",401600,C.01000.097
09/01/2020,ZZH672744,1,12684,Looking Local,270000,Information Communication Technology  ,Information and Communications Technology,"Info, Advice & Guide","Info, Advice & Guide","19,206.00",402001,13006
09/01/2020,ZZH672765,1,6748,GEORGE COX & SONS LTD,320000,Social Community Care Supplies & Services  ,Third party payments - Private/Voluntary Sector,#N/A,#N/A,"5,659.28",500605,C.10932.003
10/01/2020,ZZH672810,1,10499,Gravitas Recruitment Group Lim,999999,UNCLASSIFIED  ,MISCLASSIFIED? CHECK BEFORE PUBLICATION,Business Intelligenc,Business Intelligenc,"16,250.00",100100,11872
10/01/2020,ZZH672823,1,6857,SITEIMPROVE LTD,110000,Catering  ,Expenses and Allowances,IT Systems,IT Systems,"8,033.25",402202,12503
10/01/2020,ZZH672825,1,2403,Barcham Trees PLC,210000,Furniture & Soft Furnishings  ,Furniture and Equipment,#N/A,#N/A,"1,392.00",400115,C.10932.003
10/01/2020,ZZH672825,2,2403,Barcham Trees PLC,210000,Furniture & Soft Furnishings  ,Furniture and Equipment,#N/A,#N/A,"1,530.00",400115,C.10932.003
10/01/2020,ZZH672825,3,2403,Barcham Trees PLC,210000,Furniture & Soft Furnishings  ,Furniture and Equipment,#N/A,#N/A,423.00,400115,C.10932.003
10/01/2020,ZZH672825,4,2403,Barcham Trees PLC,210000,Furniture & Soft Furnishings  ,Furniture and Equipment,#N/A,#N/A,"2,106.00",400115,C.10932.003
10/01/2020,ZZH672825,5,2403,Barcham Trees PLC,210000,Furniture & Soft Furnishings  ,Furniture and Equipment,#N/A,#N/A,888.00,400115,C.10932.003
10/01/2020,ZZH672825,6,2403,Barcham Trees PLC,210000,Furniture & Soft Furnishings  ,Furniture and Equipment,#N/A,#N/A,"1,745.00",400115,C.10932.003
13/01/2020,ZZH672909,1,7820,GMCA - GMUTC,150000,Consultancy   ,Professional Fees,#N/A,#N/A,"6,000.00",401020,C.00983.203
14/01/2020,ZZH672967,1,1644,Tameside MBC,170000,Education  ,Third party payments - Public Sector,OLA pupils,OLA pupils,"31,333.00",500304,10371
15/01/2020,ZZH672978,1,35,CBC Computer Systems Ltd,270000,Information Communication Technology  ,Information and Communications Technology,Public Libraries Gen,Public Libraries Gen,"16,605.00",402001,11329
15/01/2020,ZZH672978,2,35,CBC Computer Systems Ltd,270000,Information Communication Technology  ,Information and Communications Technology,Public Libraries Gen,Public Libraries Gen,143.50,402001,11329
15/01/2020,ZZH673016,1,10615,Mosaic Event Catering Limited,110000,Catering  ,Catering Supplies,Town Hall Events,Town Hall Events,"9,199.85",400420,11375
16/01/2020,ZZH673057,1,13869,LEAP,321115,Social Community Care Supplies & Services Children Childcare Services,Expenses and Allowances,EPEC Programme,EPEC Programme,"7,000.00",402210,13037
16/01/2020,ZZH673083,1,2927,XMA Ltd,270000,Information Communication Technology  ,Information and Communications Technology,LSS Management,LSS Management,641.87,402001,10310
16/01/2020,ZZH673083,2,2927,XMA Ltd,270000,Information Communication Technology  ,Information and Communications Technology,LSS Management,LSS Management,80.50,402001,10310
16/01/2020,ZZH673083,3,2927,XMA Ltd,270000,Information Communication Technology  ,Information and Communications Technology,LSS Management,LSS Management,80.50,402001,10310
16/01/2020,ZZH673083,4,2927,XMA Ltd,270000,Information Communication Technology  ,Information and Communications Technology,LSS Management,LSS Management,12.22,402001,10310
16/01/2020,ZZH673083,5,2927,XMA Ltd,270000,Information Communication Technology  ,Information and Communications Technology,LSS Management,LSS Management,16.94,402001,10310
16/01/2020,ZZH673083,6,2927,XMA Ltd,270000,Information Communication Technology  ,Information and Communications Technology,LSS Management,LSS Management,"13,068.44",402001,10310
16/01/2020,ZZH673083,7,2927,XMA Ltd,270000,Information Communication Technology  ,Information and Communications Technology,LSS Management,LSS Management,111.66,402001,10310
17/01/2020,ZZH673111,1,1342,UK Container Maintenance Ltd,182020,Environmental Services Waste Management,Waste Management Equipment,Wheelie Bins,Wheelie Bins,"5,136.00",400401,10864
17/01/2020,ZZH673116,1,10985,Broadstones School Ltd,261500,Human Resources Training & Conferences ,Fees and Charges,SEN Independent Sch,SEN Independent Sch,"8,499.99",401024,10372
17/01/2020,ZZH673127,1,12180,Acorn Care and Education,261500,Human Resources Training & Conferences ,Fees and Charges,SEN Independent Sch,SEN Independent Sch,"16,311.88",401024,10372
17/01/2020,ZZH673160,1,3529,Totally Local Company Ltd,390000,Supplies and services,Supplies and services,#N/A,#N/A,"56,766.23",401600,C.00718.203
17/01/2020,ZZH673161,1,3529,Totally Local Company Ltd,390000,"Works - Construction, Repair & Maintenance  ",Capital Expenditure - Works,#N/A,#N/A,"28,728.40",200304,C.00880.203
20/01/2020,ZZH673163,1,4272,Civica UK Ltd,390000,Supplies and services,Supplies and services,Bentax,Bentax,"25,000.00",401600,11139
20/01/2020,ZZH673196,1,14016,Brain in Hand,270000,Information Communication Technology  ,Information and Communications Technology,#N/A,#N/A,"29,520.00",402001,C.10004.001
20/01/2020,ZZH673206,1,11715,CBRE,150000,Consultancy   ,Professional Fees,Merseyway Shop Ctre,Merseyway Shop Ctre,"40,280.00",401020,12866
20/01/2020,ZZH673206,2,11715,CBRE,150000,Consultancy   ,Professional Fees,Merseyway Shop Ctre,Merseyway Shop Ctre,"6,360.00",401020,12866
20/01/2020,ZZH673216,1,11715,CBRE,150000,Consultancy   ,Professional Fees,Merseyway Shop Ctre,Merseyway Shop Ctre,"5,000.00",401020,12866
20/01/2020,ZZH673216,2,11715,CBRE,150000,Consultancy   ,Professional Fees,Merseyway Shop Ctre,Merseyway Shop Ctre,"5,000.00",401020,12866
20/01/2020,ZZH673216,3,11715,CBRE,150000,Consultancy   ,Professional Fees,Merseyway Shop Ctre,Merseyway Shop Ctre,"5,950.00",401020,12866
20/01/2020,ZZH673216,4,11715,CBRE,150000,Consultancy   ,Professional Fees,Merseyway Shop Ctre,Merseyway Shop Ctre,"5,000.00",401020,12866
21/01/2020,ZZH673252,1,9232,Reed Specialist Recruitment Lt,320000,Social Community Care Supplies & Services  ,Care Payments,DP - Respite,DP - Respite,"31,500.00",530335,11513
21/01/2020,ZZH673254,1,9957,Marketing Stockport,150000,Consultancy   ,Professional Fees,MDC Mayoral DC,MDC Mayoral DC,"23,940.00",401007,13033
23/01/2020,ZZH673374,1,4272,Civica UK Ltd,270000,Information Communication Technology  ,Information and Communications Technology,Bentax,Bentax,"214,488.89",402010,11139
23/01/2020,ZZH673382,1,5214,WSP GROUP PLC,150000,Consultancy   ,Professional Fees,#N/A,#N/A,"17,500.00",401007,C.01068.202
24/01/2020,ZZH673472,1,13495,Pell Frischmann Consultants Lt,150000,Consultancy   ,Professional Fees,Design Frmwk Staff,Design Frmwk Staff,"48,192.00",401020,11965
28/01/2020,ZZH673529,1,3529,Totally Local Company Ltd,390000,"Works - Construction, Repair & Maintenance  ",Capital Expenditure - Works,#N/A,#N/A,"21,401.00",200304,C.00985.203
28/01/2020,ZZH673530,1,5214,WSP GROUP PLC,190000,Facilities & Management Services  ,Office Expenses,Invest in Growth,Invest in Growth,"34,326.00",400710,10091
28/01/2020,ZZH673532,1,757,Transport for Greater Manchest,381600,Vehicle Management Hire/Leasing ,Leasing /Transport Hire,Shuttle Bus,Shuttle Bus,"15,409.98",300302,12685
28/01/2020,ZZH673533,1,865,Bethell Construction Ltd,390000,Supplies and services,Supplies and services,#N/A,#N/A,"150,612.84",401600,C.01213.203
28/01/2020,ZZH673534,1,82,Marwood Electrical Company Ltd,390000,"Works - Construction, Repair & Maintenance  ",Capital Expenditure - Works,#N/A,#N/A,"1,866.90",200304,C.01197.203
28/01/2020,ZZH673534,2,82,Marwood Electrical Company Ltd,390000,"Works - Construction, Repair & Maintenance  ",Capital Expenditure - Works,#N/A,#N/A,"1,506.15",200304,C.01197.203
28/01/2020,ZZH673534,3,82,Marwood Electrical Company Ltd,390000,"Works - Construction, Repair & Maintenance  ",Capital Expenditure - Works,#N/A,#N/A,"8,434.44",200304,C.01197.203
28/01/2020,ZZH673536,1,8106,Tarmac Trading Ltd,390000,Supplies and services,Supplies and services,#N/A,#N/A,"181,225.93",401600,C.00991.203
28/01/2020,ZZH673537,1,3529,Totally Local Company Ltd,181800,Environmental Services Technical Equipment ,Furniture and Equipment,#N/A,#N/A,"5,000.00",400110,C.01190.203
28/01/2020,ZZH673543,1,6967,Wilde Consultants Ltd,150000,Consultancy   ,Professional Fees,#N/A,#N/A,"157,480.00",401007,C.11502.122
28/01/2020,ZZH673582,1,3707,Salford City Council/Finance,210000,Furniture & Soft Furnishings  ,Furniture and Equipment,Air Group,Air Group,"7,978.00",400105,10920
28/01/2020,ZZH673585,1,6967,Wilde Consultants Ltd,150000,Consultancy   ,Professional Fees,#N/A,#N/A,"43,542.40",401007,C.01249.203
29/01/2020,ZZH673602,1,2104,Central Manchester University,310000,Healthcare  ,Third party payments - Public Sector,PH-Sexual Health,PH-Sexual Health,"3,785,295.48",500401,12736
29/01/2020,ZZH673622,1,13428,GT 3 Architects Ltd,391000,"Works - Construction, Repair & Maintenance Architect ",Professional Fees,Sports Trust,Sports Trust,"18,000.00",401031,11294
30/01/2020,ZZH673706,1,3669,Urban Vision Partnership Lt,150000,Consultancy   ,Professional Fees,Planning,Planning,"14,000.00",401007,12150
30/01/2020,ZZH673707,1,11715,CBRE,150000,Consultancy   ,Professional Fees,Merseyway Shop Ctre,Merseyway Shop Ctre,"5,000.00",401020,12866
30/01/2020,ZZH673724,1,5915,Atkins Global Limited,150000,Consultancy   ,Professional Fees,#N/A,#N/A,"92,264.00",401007,C.00718.203
30/01/2020,ZZH673726,1,3529,Totally Local Company Ltd,391114,"Works - Construction, Repair & Maintenance Buildings Surveys",Capital Expenditure - Fees,#N/A,#N/A,"40,000.00",200316,C.01270.201
31/01/2020,ZZH673753,1,3529,Totally Local Company Ltd,390000,"Works - Construction, Repair & Maintenance  ",Capital Expenditure - Works,#N/A,#N/A,"22,131.98",200304,C.00712.203
31/01/2020,ZZH673754,1,11715,CBRE,150000,Consultancy   ,Professional Fees,Merseyway Shop Ctre,Merseyway Shop Ctre,"3,000.00",401020,12866
31/01/2020,ZZH673754,2,11715,CBRE,150000,Consultancy   ,Professional Fees,Merseyway Shop Ctre,Merseyway Shop Ctre,"3,000.00",401020,12866
31/01/2020,ZZH673766,1,683,AECOM Limited,150000,Consultancy   ,Professional Fees,Highway Structs R+R,Highway Structs R+R,"8,567.10",401007,11975
31/01/2020,ZZH673767,1,9016,Granicus,190000,Facilities & Management Services  ,Office Expenses,POD Communications,POD Communications,"27,012.00",400710,11323
31/01/2020,ZZH673796,1,13979,Perspectives Consultancy Ltd,270000,Information Communication Technology  ,Information and Communications Technology,Modernisation,Modernisation,"24,000.00",402003,11876
31/01/2020,ZZH673806,1,5214,WSP GROUP PLC,150000,Consultancy   ,Professional Fees,#N/A,#N/A,"17,327.00",401007,C.01289.201
31/01/2020,ZZH673807,1,5214,WSP GROUP PLC,150000,Consultancy   ,Professional Fees,#N/A,#N/A,"11,834.00",401007,C.01288.201
31/01/2020,ZZH673808,1,5214,WSP GROUP PLC,150000,Consultancy   ,Professional Fees,#N/A,#N/A,"11,834.00",401007,C.01273.201
31/01/2020,ZZH673809,1,3529,Totally Local Company Ltd,390000,Supplies and services,Supplies and services,#N/A,#N/A,"6,278.82",401600,C.01298.203
31/01/2020,ZZH673810,1,5214,WSP GROUP PLC,150000,Consultancy   ,Professional Fees,#N/A,#N/A,"11,834.00",401007,C.01272.201
31/01/2020,ZZH673811,1,5214,WSP GROUP PLC,150000,Consultancy   ,Professional Fees,#N/A,#N/A,"11,834.00",401007,C.01271.201
31/01/2020,ZZH673812,1,5214,WSP GROUP PLC,150000,Consultancy   ,Professional Fees,#N/A,#N/A,"11,834.00",401007,C.01270.201
31/01/2020,ZZH673813,1,5214,WSP GROUP PLC,150000,Consultancy   ,Professional Fees,#N/A,#N/A,"11,834.00",401007,C.01270.201
31/01/2020,ZZH673814,1,5214,WSP GROUP PLC,150000,Consultancy   ,Professional Fees,#N/A,#N/A,"11,834.00",401007,C.01269.201
31/01/2020,ZZH673815,1,5214,WSP GROUP PLC,150000,Consultancy   ,Professional Fees,#N/A,#N/A,"11,834.00",401007,C.01233.201
31/01/2020,ZZH673816,1,5214,WSP GROUP PLC,150000,Consultancy   ,Professional Fees,#N/A,#N/A,"11,834.00",401007,C.01232.201
31/01/2020,ZZH673817,1,5214,WSP GROUP PLC,150000,Consultancy   ,Professional Fees,#N/A,#N/A,"11,834.00",401007,C.01231.201
03/02/2020,ZZH673876,1,14042,Broadoak School,170000,Education  ,Third party payments - Public Sector,OLA pupils,OLA pupils,"5,860.50",500304,10371
04/02/2020,ZZH673958,1,1339,Stockport NHS Foundation Trust,310000,Healthcare  ,Third party payments - Public Sector,Yth Justice EarlyInt,Yth Justice EarlyInt,"8,383.00",500402,11787
04/02/2020,ZZH673958,2,1339,Stockport NHS Foundation Trust,310000,Healthcare  ,Third party payments - Public Sector,Yth Justice EarlyInt,Yth Justice EarlyInt,"10,170.00",500402,11787
04/02/2020,ZZH673961,1,9894,TLT LLP,390000,Supplies and services,Supplies and services,#N/A,#N/A,"12,644.80",401600,C.00718.203
04/02/2020,ZZH673963,1,3529,Totally Local Company Ltd,240000,Horticultural  ,Grounds Maintenance,#N/A,#N/A,"40,000.00",202030,C.01015.203
04/02/2020,ZZH673966,1,6967,Wilde Consultants Ltd,150000,Consultancy   ,Professional Fees,Network Assets Staff,Network Assets Staff,"20,520.00",401007,11959
04/02/2020,ZZH673980,1,12200,Cadent Gas Limited,230000,Highway Equipment & Materials�   ,Highways Maintenance,#N/A,#N/A,"157,744.98",202055,C.00932.203
04/02/2020,ZZH673981,1,865,Bethell Construction Ltd,390000,Supplies and services,Supplies and services,Highway Structs R+R,Highway Structs R+R,"30,018.87",401600,11975
04/02/2020,ZZH673982,1,6748,GEORGE COX & SONS LTD,390000,Supplies and services,Supplies and services,#N/A,#N/A,"34,584.74",401600,C.01264.203
05/02/2020,ZZH673985,1,3529,Totally Local Company Ltd,390000,Supplies and services,Supplies and services,VM Overdale CC,VM Overdale CC,"48,971.51",401600,12956
05/02/2020,ZZH673986,1,3529,Totally Local Company Ltd,390000,Supplies and services,Supplies and services,Emergency Tree Works,Emergency Tree Works,"9,800.00",401600,11168
05/02/2020,ZZH673997,1,3529,Totally Local Company Ltd,390000,Supplies and services,Supplies and services,Emergency Tree Works,Emergency Tree Works,"7,900.00",401600,11168
05/02/2020,ZZH674012,1,6748,GEORGE COX & SONS LTD,390000,Supplies and services,Supplies and services,#N/A,#N/A,"5,318.79",401600,C.10408.166
05/02/2020,ZZH674013,1,14071,OMOS Ltd CHAPSor SWIFT payment,210000,Furniture & Soft Furnishings  ,Furniture and Equipment,#N/A,#N/A,"56,049.92",400100,C.10932.003
05/02/2020,ZZH674021,1,7025,CBRE Limited,150000,Consultancy   ,Professional Fees,MDC Mayoral DC,MDC Mayoral DC,"22,500.00",401007,13033
05/02/2020,ZZH674021,2,7025,CBRE Limited,150000,Consultancy   ,Professional Fees,MDC Mayoral DC,MDC Mayoral DC,"7,500.00",401007,13033
05/02/2020,ZZH674035,1,14072,Macdonald & Company Property L,150000,Consultancy   ,Professional Fees,MDC Mayoral DC,MDC Mayoral DC,"17,042.00",401007,13033
05/02/2020,ZZH674050,1,5014,The Compost Bag Company Ltd,182020,Environmental Services Waste Management,Waste Management Equipment,Food ContrsHouse Bag,Food ContrsHouse Bag,"246,469.90",400401,10865
05/02/2020,ZZH674064,1,1339,Stockport NHS Foundation Trust,261500,Human Resources Training & Conferences ,Fees and Charges,CYP PH Contracts,CYP PH Contracts,"5,000.00",401024,13034
06/02/2020,ZZH674069,1,300,David Ogilvie Ltd,190000,Facilities & Management Services  ,Fixtures and Fittings,Memorial Benches,Memorial Benches,"4,886.00",201201,11279
06/02/2020,ZZH674069,2,300,David Ogilvie Ltd,190000,Facilities & Management Services  ,Fixtures and Fittings,Memorial Benches,Memorial Benches,350.00,201201,11279
06/02/2020,ZZH674082,1,4272,Civica UK Ltd,270000,Information Communication Technology  ,Information and Communications Technology,Members Services,Members Services,"9,913.40",402001,11111
06/02/2020,ZZH674125,1,628,Life Leisure,150000,Consultancy   ,Professional Fees,PH-Physical Activity,PH-Physical Activity,"16,750.00",401020,12834
07/02/2020,ZZH674146,1,10985,Broadstones School Ltd,261500,Human Resources Training & Conferences ,Fees and Charges,SEN Independent Sch,SEN Independent Sch,"34,000.00",401024,10372
07/02/2020,ZZH674147,1,4083,Hulme Hall School,261500,Human Resources Training & Conferences ,Fees and Charges,SEN Specific support,SEN Specific support,"6,278.58",401024,10300
07/02/2020,ZZH674150,1,11955,ROSSENDALE SCHOOL,261500,Human Resources Training & Conferences ,Fees and Charges,SEN Independent Sch,SEN Independent Sch,"18,847.61",401024,10372
07/02/2020,ZZH674162,1,7802,Craemer UK Ltd,182020,Environmental Services Waste Management,Waste Management Equipment,Wheelie Bins,Wheelie Bins,"9,628.50",400401,10864
07/02/2020,ZZH674162,2,7802,Craemer UK Ltd,182020,Environmental Services Waste Management,Waste Management Equipment,Wheelie Bins,Wheelie Bins,"4,386.34",400401,10864
07/02/2020,ZZH674162,3,7802,Craemer UK Ltd,182020,Environmental Services Waste Management,Waste Management Equipment,Wheelie Bins,Wheelie Bins,"4,270.91",400401,10864
07/02/2020,ZZH674172,1,1535,Capita Education Services,390000,"Works - Construction, Repair & Maintenance  ",Fees and Charges,IT SIMS,IT SIMS,"13,500.00",401017,10422
07/02/2020,ZZH674172,2,1535,Capita Education Services,390000,"Works - Construction, Repair & Maintenance  ",Fees and Charges,IT SIMS,IT SIMS,"91,592.15",401017,10422
07/02/2020,ZZH674172,3,1535,Capita Education Services,390000,"Works - Construction, Repair & Maintenance  ",Fees and Charges,IT SIMS,IT SIMS,"39,644.07",401017,10422
07/02/2020,ZZH674172,4,1535,Capita Education Services,390000,"Works - Construction, Repair & Maintenance  ",Fees and Charges,IT SIMS,IT SIMS,"23,797.00",401017,10422
11/02/2020,ZZH674200,1,14011,Baltimore Consulting,150000,Consultancy   ,Professional Fees,SEN Trans-Staffing,SEN Trans-Staffing,"80,000.00",401007,10759
11/02/2020,ZZH674207,1,865,Bethell Construction Ltd,390000,Supplies and services,Supplies and services,#N/A,#N/A,"251,039.42",401600,C.01175.203
11/02/2020,ZZH674277,1,12332,Broad Oak Primary School,170000,Education  ,Third party payments - Public Sector,OLA pupils,OLA pupils,"5,860.50",500304,10371
11/02/2020,ZZH674286,1,3763,IDOX Information Solutions,270000,Information Communication Technology  ,Information and Communications Technology,SEND Inspection,SEND Inspection,"22,725.00",402065,13026
12/02/2020,ZZH674333,1,14079,Software Box Ltd,270000,Information Communication Technology  ,Information and Communications Technology,IT Systems,IT Systems,"18,500.00",402002,12503
12/02/2020,ZZH674333,2,14079,Software Box Ltd,270000,Information Communication Technology  ,Information and Communications Technology,IT Systems,IT Systems,"7,500.00",402002,12503
12/02/2020,ZZH674333,3,14079,Software Box Ltd,270000,Information Communication Technology  ,Information and Communications Technology,IT Systems,IT Systems,"10,000.00",402002,12503
12/02/2020,ZZH674333,4,14079,Software Box Ltd,270000,Information Communication Technology  ,Information and Communications Technology,IT Systems,IT Systems,"7,500.00",402002,12503
12/02/2020,ZZH674333,5,14079,Software Box Ltd,270000,Information Communication Technology  ,Information and Communications Technology,IT Systems,IT Systems,"84,121.00",402002,12503
12/02/2020,ZZH674333,6,14079,Software Box Ltd,270000,Information Communication Technology  ,Information and Communications Technology,IT Systems,IT Systems,"19,665.00",402002,12503
12/02/2020,ZZH674359,1,10855,Bloom Procurement Services,150000,Consultancy   ,Professional Fees,Regen & Development,Regen & Development,"10,300.00",401007,10098
12/02/2020,ZZH674391,1,683,AECOM Limited,150000,Consultancy   ,Professional Fees,#N/A,#N/A,"15,876.20",401007,C.00712.201
12/02/2020,ZZH674413,1,5915,Atkins Global,150000,Consultancy   ,Professional Fees,Design Frmwk Staff,Design Frmwk Staff,"96,000.00",401020,11965
12/02/2020,ZZH674414,1,683,AECOM Limited,150000,Consultancy   ,Professional Fees,#N/A,#N/A,"8,038.00",401007,C.00718.203
13/02/2020,ZZH674426,1,13223,A Pacini Ltd,150000,Consultancy   ,Professional Fees,Property Client Acct,Property Client Acct,"5,287.76",401020,12328
13/02/2020,ZZH674427,1,13860,Howard Lynn Property Ltd,150000,Consultancy   ,Professional Fees,Property Client Acct,Property Client Acct,"6,392.47",401020,12328
13/02/2020,ZZH674446,1,1644,Tameside MBC,999999,Fees and Charges,Fees and Charges,Adults Management,Adults Management,"7,500.00",401035,11873
13/02/2020,ZZH674449,1,14086,Cowperstone Ltd,260000,Human Resources  ,Staff Training,Members Services,Members Services,"5,000.00",102020,11111
13/02/2020,ZZH674466,1,2927,XMA Ltd,270000,Information Communication Technology  ,Information and Communications Technology,AOM costs,AOM costs,"39,111.94",402001,11878
13/02/2020,ZZH674466,2,2927,XMA Ltd,270000,Information Communication Technology  ,Information and Communications Technology,AOM costs,AOM costs,255.50,402001,11878
13/02/2020,ZZH674466,3,2927,XMA Ltd,270000,Information Communication Technology  ,Information and Communications Technology,AOM costs,AOM costs,255.50,402001,11878
13/02/2020,ZZH674466,4,2927,XMA Ltd,270000,Information Communication Technology  ,Information and Communications Technology,AOM costs,AOM costs,892.06,402001,11878
13/02/2020,ZZH674466,5,2927,XMA Ltd,270000,Information Communication Technology  ,Information and Communications Technology,AOM costs,AOM costs,"6,510.87",402001,11878
13/02/2020,ZZH674466,6,2927,XMA Ltd,270000,Information Communication Technology  ,Information and Communications Technology,AOM costs,AOM costs,"1,203.77",402001,11878
14/02/2020,ZZH674567,1,349,Shaw and Sons,171113,Education Library Books ,Library Equipment,Local Election,Local Election,"2,934.80",400202,12102
14/02/2020,ZZH674567,2,349,Shaw and Sons,171113,Education Library Books ,Library Equipment,Local Election,Local Election,"1,002.80",400202,12102
14/02/2020,ZZH674567,3,349,Shaw and Sons,171113,Education Library Books ,Library Equipment,Local Election,Local Election,"1,590.00",400202,12102
14/02/2020,ZZH674567,4,349,Shaw and Sons,171113,Education Library Books ,Library Equipment,Local Election,Local Election,"1,990.00",400202,12102
14/02/2020,ZZH674567,5,349,Shaw and Sons,171113,Education Library Books ,Library Equipment,Local Election,Local Election,130.00,400202,12102
14/02/2020,ZZH674567,6,349,Shaw and Sons,171113,Education Library Books ,Library Equipment,Local Election,Local Election,17.60,400202,12102
14/02/2020,ZZH674567,7,349,Shaw and Sons,171113,Education Library Books ,Library Equipment,Local Election,Local Election,78.60,400202,12102
14/02/2020,ZZH674600,1,683,AECOM Limited,391114,"Works - Construction, Repair & Maintenance Buildings Surveys",Capital Expenditure - Fees,#N/A,#N/A,"16,746.25",200316,C.01289.201
14/02/2020,ZZH674607,1,757,Transport for Greater Manchest,230000,Highway Equipment & Materials�   ,Highways Maintenance,#N/A,#N/A,"19,696.33",202054,C.00991.203
14/02/2020,ZZH674609,1,3529,Totally Local Company Ltd,390000,"Works - Construction, Repair & Maintenance  ",Capital Expenditure - Works,#N/A,#N/A,"55,000.00",200304,C.01297.203
14/02/2020,ZZH674612,1,216,Manchester City Council,150000,Consultancy   ,Professional Fees,WD-Stf Dev-Adm&Trai,WD-Stf Dev-Adm&Trai,"6,500.00",401020,12200
14/02/2020,ZZH674612,1,216,Manchester City Council,150000,Consultancy   ,Professional Fees,iBCF,iBCF,"6,500.00",401020,13000
14/02/2020,ZZH674624,1,865,Bethell Construction Ltd,390000,Supplies and services,Supplies and services,#N/A,#N/A,"20,216.91",401600,C.01252.203
17/02/2020,ZZH674688,1,6748,GEORGE COX & SONS LTD,390000,Supplies and services,Supplies and services,#N/A,#N/A,"29,599.10",401600,C.01221.203
18/02/2020,ZZH674694,1,13510,Children's Therapy Solutions,150000,Consultancy   ,Professional Fees,SEN Specific support,SEN Specific support,"9,619.96",401020,10300
18/02/2020,ZZH674716,1,8236,STOCKPORT WITHOUT ABUSE,390000,Supplies and services,Supplies and services,Domestic Abuse,Domestic Abuse,"25,000.00",401600,12852
18/02/2020,ZZH674722,1,13551,Permanent Futures Ltd,390000,Supplies and services,Supplies and services,SEND Inspection,SEND Inspection,"80,000.00",401600,13026
18/02/2020,ZZH674723,1,12608,Liquidlogic Limited,270000,Information Communication Technology  ,Information and Communications Technology,IT Liquid Logic Proj,IT Liquid Logic Proj,"28,755.00",402002,12958
18/02/2020,ZZH674724,1,3529,Totally Local Company Ltd,391200,"Works - Construction, Repair & Maintenance Engineering ",Professional Fees,Town Centre Devt Tea,Town Centre Devt Tea,"7,739.84",401032,10072
18/02/2020,ZZH674727,1,10966,National Car Parks Ltd,999999,Fees and Charges,Fees and Charges,Grand Central IE,Grand Central IE,"70,000.00",402404,12598
19/02/2020,ZZH674792,1,12307,Creative Heritage Consultants,340000,Stationery    ,Office Expenses,Heritage Underbanks,Heritage Underbanks,"10,900.00",400707,12938
20/02/2020,ZZH674801,1,3529,Totally Local Company Ltd,390000,"Works - Construction, Repair & Maintenance  ",Capital Expenditure - Works,#N/A,#N/A,"13,202.28",200304,C.01297.203
20/02/2020,ZZH674805,1,7802,Craemer UK Ltd,182020,Environmental Services Waste Management,Waste Management Equipment,Wheelie Bins,Wheelie Bins,"7,140.00",400401,10864
20/02/2020,ZZH674810,1,2927,XMA Ltd,270000,Information Communication Technology  ,Information and Communications Technology,CSS Management,CSS Management,"2,880.00",402001,12499
20/02/2020,ZZH674810,2,2927,XMA Ltd,270000,Information Communication Technology  ,Information and Communications Technology,CSS Management,CSS Management,"9,108.26",402001,12499
20/02/2020,ZZH674810,3,2927,XMA Ltd,270000,Information Communication Technology  ,Information and Communications Technology,CSS Management,CSS Management,59.50,402001,12499
20/02/2020,ZZH674810,4,2927,XMA Ltd,270000,Information Communication Technology  ,Information and Communications Technology,CSS Management,CSS Management,59.50,402001,12499
20/02/2020,ZZH674810,5,2927,XMA Ltd,270000,Information Communication Technology  ,Information and Communications Technology,CSS Management,CSS Management,207.74,402001,12499
20/02/2020,ZZH674810,6,2927,XMA Ltd,270000,Information Communication Technology  ,Information and Communications Technology,CSS Management,CSS Management,981.09,402001,12499
20/02/2020,ZZH674813,1,7025,CBRE Limited,150000,Consultancy   ,Professional Fees,MDC Mayoral DC,MDC Mayoral DC,"22,500.00",401007,13033
20/02/2020,ZZH674815,1,7025,CBRE Limited,150000,Consultancy   ,Professional Fees,MDC Mayoral DC,MDC Mayoral DC,"7,500.00",401007,13033
20/02/2020,ZZH674821,1,815,University of Manchester,999999,Fees and Charges,Fees and Charges,SEN Incl - Psycholog,SEN Incl - Psycholog,"5,516.50",401035,10751
20/02/2020,ZZH674823,1,10185,FutureGov Ltd,200000,Financial Services  ,Fees and Charges,Strategy & Design,Strategy & Design,"20,000.00",402401,12642
20/02/2020,ZZH674824,1,4272,Civica UK Ltd,270000,Information Communication Technology  ,Information and Communications Technology,Bentax,Bentax,"6,750.00",402001,11139
20/02/2020,ZZH674838,1,8010,GROUNDWORK & LEISURE SERVIC,240000,Horticultural  ,Grounds Maintenance,#N/A,#N/A,"17,014.00",202032,C.10775
20/02/2020,ZZH674849,1,5464,ELECTRICITY NORTH WEST LIMITED,230000,Highway Equipment & Materials�   ,Highways Maintenance,#N/A,#N/A,"26,136.64",202055,C.00880.202
21/02/2020,ZZH674853,1,13386,Creative Communicators Ltd,190000,Facilities & Management Services  ,Publicity and Promotion,POD Communications,POD Communications,"12,000.00",401803,11323
21/02/2020,ZZH674853,2,13386,Creative Communicators Ltd,190000,Facilities & Management Services  ,Publicity and Promotion,POD Communications,POD Communications,245.70,401803,11323
21/02/2020,ZZH674853,3,13386,Creative Communicators Ltd,190000,Facilities & Management Services  ,Publicity and Promotion,POD Communications,POD Communications,145.80,401803,11323
21/02/2020,ZZH674856,1,13124,Social Finance Limited,150000,Consultancy   ,Professional Fees,Business Intelligenc,Business Intelligenc,"135,047.00",401007,11872
21/02/2020,ZZH674883,1,7820,GMCA - GMUTC,391114,"Works - Construction, Repair & Maintenance Buildings Surveys",Capital Expenditure - Fees,#N/A,#N/A,"5,300.00",200316,C.01270.201
21/02/2020,ZZH674886,1,6255,Building Software Ltd,391200,"Works - Construction, Repair & Maintenance Engineering ",Professional Fees,Invest in Growth,Invest in Growth,"15,540.00",401032,10091
21/02/2020,ZZH674887,1,6748,GEORGE COX & SONS LTD,390000,"Works - Construction, Repair & Maintenance  ",Capital Expenditure - Works,#N/A,#N/A,"110,084.59",200304,C.00991.203
21/02/2020,ZZH674888,1,7820,GMCA - GMUTC,391114,"Works - Construction, Repair & Maintenance Buildings Surveys",Capital Expenditure - Fees,#N/A,#N/A,"5,300.00",200316,C.01270.202
21/02/2020,ZZH674889,1,8202,The Fountain Company Ltd,390000,Supplies and services,Supplies and services,St Peter's Square,St Peter's Square,"5,546.75",401600,11979
21/02/2020,ZZH674889,2,8202,The Fountain Company Ltd,390000,Supplies and services,Supplies and services,St Peter's Square,St Peter's Square,"10,231.00",401600,11979
21/02/2020,ZZH674889,3,8202,The Fountain Company Ltd,390000,Supplies and services,Supplies and services,St Peter's Square,St Peter's Square,"1,434.00",401600,11979
21/02/2020,ZZH674890,1,13386,Creative Communicators Ltd,190000,Facilities & Management Services  ,Publicity and Promotion,POD Communications,POD Communications,"12,890.00",401802,11323
21/02/2020,ZZH674897,1,9612,Capita Property & Infrastructu,150000,Consultancy   ,Professional Fees,Planning,Planning,"14,000.00",401007,12150
21/02/2020,ZZH674901,1,6909,Learning Pool Ltd,270000,Information Communication Technology  ,Information and Communications Technology,POD Workforce Dev,POD Workforce Dev,"29,750.00",402010,11888
22/02/2020,ZZH674921,1,3529,Totally Local Company Ltd,390000,"Works - Construction, Repair & Maintenance  ",Capital Expenditure - Works,#N/A,#N/A,"9,774.40",200304,C.01301.203
24/02/2020,ZZH674984,1,11973,Virgin Media Ltd,230000,Highway Equipment & Materials�   ,Highways Maintenance,#N/A,#N/A,"5,299.56",202055,C.00950.203
24/02/2020,ZZH675000,1,14095,The Document Management Group,181800,Environmental Services Technical Equipment ,Furniture and Equipment,Mailroom Service,Mailroom Service,"7,120.00",400110,11152
24/02/2020,ZZH675006,1,3738,Open Text UKLtd,270000,Information Communication Technology  ,Information and Communications Technology,IT Systems,IT Systems,"50,099.54",402002,12503
24/02/2020,ZZH675006,2,3738,Open Text UKLtd,270000,Information Communication Technology  ,Information and Communications Technology,IT Systems,IT Systems,"50,099.54",402002,12503
25/02/2020,ZZH675043,1,14088,Oyster Partnership,999999,UNCLASSIFIED  ,MISCLASSIFIED? CHECK BEFORE PUBLICATION,Housing Standards,Housing Standards,"30,000.00",100100,10956
25/02/2020,ZZH675057,1,865,Bethell Construction Ltd,390000,Supplies and services,Supplies and services,#N/A,#N/A,"234,969.66",401600,C.01175.203
25/02/2020,ZZH675058,1,14034,Oxygen Finance Limited,270000,Information Communication Technology  ,Information and Communications Technology,Financial Accountanc,Financial Accountanc,"16,600.00",402004,12873
25/02/2020,ZZH675077,1,14104,Embrace Digital,181800,Environmental Services Technical Equipment ,Furniture and Equipment,Mailroom Service,Mailroom Service,"12,600.00",400110,11152
26/02/2020,ZZH675086,1,3529,Totally Local Company Ltd,390000,"Works - Construction, Repair & Maintenance  ",Capital Expenditure - Works,#N/A,#N/A,"7,883.67",200304,C.00705.202
26/02/2020,ZZH675152,1,12193,Greater Manchester Combined Au,390000,"Works - Construction, Repair & Maintenance  ",Capital Expenditure - Works,#N/A,#N/A,"6,073.61",200304,C.00710.203
26/02/2020,ZZH675153,1,4369,Pennine Care NHS Trust,150000,Consultancy   ,Professional Fees,MOS - Mosaic Mngmnt,MOS - Mosaic Mngmnt,"19,835.00",401020,11430
27/02/2020,ZZH675194,1,12268,Dunham Trust for The Orchards,261500,Human Resources Training & Conferences ,Fees and Charges,OLA pupils,OLA pupils,"5,851.00",401024,10371
27/02/2020,ZZH675201,1,3529,Totally Local Company Ltd,390000,Supplies and services,Supplies and services,#N/A,#N/A,"5,110.00",401600,C.10932.003
27/02/2020,ZZH675202,1,3529,Totally Local Company Ltd,390000,Supplies and services,Supplies and services,#N/A,#N/A,"6,356.58",401600,C.10932.003
27/02/2020,ZZH675204,1,5915,Atkins Global,150000,Consultancy   ,Professional Fees,Highways-Network Man,Highways-Network Man,"30,715.00",401020,11968
27/02/2020,ZZH675205,1,5915,Atkins Global,150000,Consultancy   ,Professional Fees,Highways-Network Man,Highways-Network Man,"30,715.00",401020,11968
27/02/2020,ZZH675217,1,14100,Newgate Communications Limited,150000,Consultancy   ,Professional Fees,MDC Mayoral DC,MDC Mayoral DC,"23,500.00",401007,13033
27/02/2020,ZZH675219,1,13451,HM Prison and Probation Servic,320000,Social Community Care Supplies & Services  ,Third party payments - Private/Voluntary Sector,GMCA Cmnity Sfty Fnd,GMCA Cmnity Sfty Fnd,"6,000.00",402403,12965
27/02/2020,ZZH675225,1,12193,Greater Manchester Combined Au,390000,"Works - Construction, Repair & Maintenance  ",Capital Expenditure - Works,#N/A,#N/A,"6,608.40",200304,C.00710.203
28/02/2020,ZZH675264,1,6748,GEORGE COX & SONS LTD,390000,Supplies and services,Supplies and services,#N/A,#N/A,"20,000.00",401600,C.01249.201
01/03/2020,ZZH675288,1,13109,4 Mental Health Ltd,390000,"Works - Construction, Repair & Maintenance  ",Fees and Charges,PH-Mental Wellbeing,PH-Mental Wellbeing,"5,000.00",401017,12734
03/03/2020,ZZH675368,1,3529,Totally Local Company Ltd,390000,"Works - Construction, Repair & Maintenance  ",Capital Expenditure - Works,#N/A,#N/A,"5,442.96",200304,C.01324.203
03/03/2020,ZZH675369,1,3529,Totally Local Company Ltd,390000,"Works - Construction, Repair & Maintenance  ",Capital Expenditure - Works,#N/A,#N/A,"5,641.00",200304,C.01324.203
03/03/2020,ZZH675379,1,845,Dotted Eyes Ltd,270000,Information Communication Technology  ,Information and Communications Technology,Spatial Intelligence,Spatial Intelligence,"8,750.00",402001,11973
03/03/2020,ZZH675380,1,8300,Astun Technologies Limited,270000,Information Communication Technology  ,Information and Communications Technology,Spatial Intelligence,Spatial Intelligence,"16,560.00",402001,11973
03/03/2020,ZZH675380,2,8300,Astun Technologies Limited,270000,Information Communication Technology  ,Information and Communications Technology,Spatial Intelligence,Spatial Intelligence,"1,800.00",402001,11973
03/03/2020,ZZH675388,1,371,GLOBAL OUTDOOR MEDIA LIMITED,190000,Facilities & Management Services  ,Publicity and Promotion,POD Printing,POD Printing,600.00,401800,11064
03/03/2020,ZZH675388,2,371,GLOBAL OUTDOOR MEDIA LIMITED,190000,Facilities & Management Services  ,Publicity and Promotion,POD Printing,POD Printing,"4,800.00",401800,11064
03/03/2020,ZZH675444,1,8106,Tarmac Building Products Ltd,390000,Supplies and services,Supplies and services,#N/A,#N/A,"27,676.77",401600,C.00950.201
03/03/2020,ZZH675445,1,6748,GEORGE COX & SONS LTD,390000,"Works - Construction, Repair & Maintenance  ",Capital Expenditure - Works,#N/A,#N/A,"69,207.57",200304,C.00950.201
03/03/2020,ZZH675446,1,8106,Tarmac Building Products Ltd,390000,Supplies and services,Supplies and services,#N/A,#N/A,"47,732.52",401600,C.00991.203
03/03/2020,ZZH675447,1,683,AECOM Limited,150000,Consultancy   ,Professional Fees,Design Frmwk Staff,Design Frmwk Staff,"59,894.40",401020,11965
03/03/2020,ZZH675448,1,683,AECOM Limited,150000,Consultancy   ,Professional Fees,Design Frmwk Staff,Design Frmwk Staff,"28,323.36",401020,11965
03/03/2020,ZZH675449,1,683,AECOM Limited,150000,Consultancy   ,Professional Fees,Design Frmwk Staff,Design Frmwk Staff,"6,205.92",401020,11965
04/03/2020,ZZH675454,1,14011,Baltimore Consulting,261400,Human Resources Temporary & Agency Staff ,Agency Staff,MH Team Managers,MH Team Managers,"68,513.00",100290,11708
04/03/2020,ZZH675480,1,35,CBC Computer Systems Ltd,270000,Information Communication Technology  ,Information and Communications Technology,POD Communications,POD Communications,"9,900.00",402001,11323
04/03/2020,ZZH675480,2,35,CBC Computer Systems Ltd,270000,Information Communication Technology  ,Information and Communications Technology,POD Communications,POD Communications,900.00,402001,11323
04/03/2020,ZZH675480,3,35,CBC Computer Systems Ltd,270000,Information Communication Technology  ,Information and Communications Technology,POD Communications,POD Communications,"3,000.00",402001,11323
04/03/2020,ZZH675480,4,35,CBC Computer Systems Ltd,270000,Information Communication Technology  ,Information and Communications Technology,POD Communications,POD Communications,"5,380.00",402001,11323
04/03/2020,ZZH675480,5,35,CBC Computer Systems Ltd,270000,Information Communication Technology  ,Information and Communications Technology,POD Communications,POD Communications,119.00,402001,11323
04/03/2020,ZZH675480,6,35,CBC Computer Systems Ltd,270000,Information Communication Technology  ,Information and Communications Technology,POD Communications,POD Communications,"1,100.00",402001,11323
04/03/2020,ZZH675480,7,35,CBC Computer Systems Ltd,270000,Information Communication Technology  ,Information and Communications Technology,POD Communications,POD Communications,450.00,402001,11323
04/03/2020,ZZH675504,1,11851,SKILLS FOR CARE(non DHSC),999999,Fees and Charges,Fees and Charges,Contracts SS Manager,Contracts SS Manager,"62,661.00",401035,11863
05/03/2020,ZZH675536,1,13808,Progress to Excellence Group,261500,Human Resources Training & Conferences ,Fees and Charges,SEN Independent Sch,SEN Independent Sch,"8,100.00",401024,10372
05/03/2020,ZZH675540,1,1722,The Together Trust Centre,261500,Human Resources Training & Conferences ,Fees and Charges,SEN NMSS School Fees,SEN NMSS School Fees,"23,706.66",401024,12710
05/03/2020,ZZH675552,1,5464,ELECTRICITY NORTH WEST LIMITED,230000,Highway Equipment & Materials�   ,Highways Maintenance,#N/A,#N/A,"6,236.44",202055,C.00934.203
05/03/2020,ZZH675553,1,5464,ELECTRICITY NORTH WEST LIMITED,230000,Highway Equipment & Materials�   ,Highways Maintenance,#N/A,#N/A,"19,323.07",202055,C.01044.203
05/03/2020,ZZH675556,1,683,AECOM Limited,150000,Consultancy   ,Professional Fees,#N/A,#N/A,"51,350.00",401007,C.01236.201
05/03/2020,ZZH675565,1,12808,Edenhouse Solutions Limited,270000,Information Communication Technology  ,Information and Communications Technology,IT Systems,IT Systems,"16,150.00",402002,12503
05/03/2020,ZZH675570,1,3529,Totally Local Company Ltd,390000,Supplies and services,Supplies and services,Nature-Arboriculture,Nature-Arboriculture,440.00,401600,11281
05/03/2020,ZZH675570,2,3529,Totally Local Company Ltd,390000,Supplies and services,Supplies and services,Nature-Arboriculture,Nature-Arboriculture,"8,220.00",401600,11281
05/03/2020,ZZH675570,3,3529,Totally Local Company Ltd,390000,Supplies and services,Supplies and services,Nature-Arboriculture,Nature-Arboriculture,"3,370.00",401600,11281
05/03/2020,ZZH675570,4,3529,Totally Local Company Ltd,390000,Supplies and services,Supplies and services,Nature-Arboriculture,Nature-Arboriculture,742.00,401600,11281
05/03/2020,ZZH675570,5,3529,Totally Local Company Ltd,390000,Supplies and services,Supplies and services,Nature-Arboriculture,Nature-Arboriculture,660.00,401600,11281
06/03/2020,ZZH675618,1,35,CBC Computer Systems Ltd,270000,Information Communication Technology  ,Information and Communications Technology,VST - PPG,VST - PPG,"5,950.00",402001,12777
06/03/2020,ZZH675636,1,82,Marwood Electrical Company Ltd,390000,"Works - Construction, Repair & Maintenance  ",Capital Expenditure - Works,#N/A,#N/A,"11,543.62",200304,C.01198.203
06/03/2020,ZZH675636,2,82,Marwood Electrical Company Ltd,390000,"Works - Construction, Repair & Maintenance  ",Capital Expenditure - Works,#N/A,#N/A,421.30,200304,C.01198.203
06/03/2020,ZZH675636,3,82,Marwood Electrical Company Ltd,390000,"Works - Construction, Repair & Maintenance  ",Capital Expenditure - Works,#N/A,#N/A,"1,600.94",200304,C.01198.203
06/03/2020,ZZH675636,4,82,Marwood Electrical Company Ltd,390000,"Works - Construction, Repair & Maintenance  ",Capital Expenditure - Works,#N/A,#N/A,"3,100.65",200304,C.01198.203
06/03/2020,ZZH675638,1,8549,Lucy Zodion Ltd,390000,"Works - Construction, Repair & Maintenance  ",Capital Expenditure - Works,#N/A,#N/A,"125,000.00",200304,C.01198.203
06/03/2020,ZZH675639,1,82,Marwood Electrical Company Ltd,390000,"Works - Construction, Repair & Maintenance  ",Capital Expenditure - Works,#N/A,#N/A,"12,049.18",200304,C.01198.203
06/03/2020,ZZH675639,2,82,Marwood Electrical Company Ltd,390000,"Works - Construction, Repair & Maintenance  ",Capital Expenditure - Works,#N/A,#N/A,"75,834.00",200304,C.01198.203
06/03/2020,ZZH675639,3,82,Marwood Electrical Company Ltd,390000,"Works - Construction, Repair & Maintenance  ",Capital Expenditure - Works,#N/A,#N/A,"6,024.12",200304,C.01198.203
06/03/2020,ZZH675639,4,82,Marwood Electrical Company Ltd,390000,"Works - Construction, Repair & Maintenance  ",Capital Expenditure - Works,#N/A,#N/A,"3,213.12",200304,C.01198.203
06/03/2020,ZZH675639,5,82,Marwood Electrical Company Ltd,390000,"Works - Construction, Repair & Maintenance  ",Capital Expenditure - Works,#N/A,#N/A,"4,819.68",200304,C.01198.203
06/03/2020,ZZH675639,6,82,Marwood Electrical Company Ltd,390000,"Works - Construction, Repair & Maintenance  ",Capital Expenditure - Works,#N/A,#N/A,"24,136.35",200304,C.01198.203
06/03/2020,ZZH675641,1,6748,GEORGE COX & SONS LTD,390000,"Works - Construction, Repair & Maintenance  ",Capital Expenditure - Works,#N/A,#N/A,"36,596.79",200304,C.01015.202
06/03/2020,ZZH675643,1,6748,GEORGE COX & SONS LTD,230000,Highway Equipment & Materials�   ,Highways Maintenance,#N/A,#N/A,"73,052.36",202054,C.00950.203
06/03/2020,ZZH675646,1,11296,Arrow County Supplies,130000,Cleaning & Janitorial  ,Cleaning,SPB Operational Est.,SPB Operational Est.,"17,880.00",201601,11662
06/03/2020,ZZH675676,1,14011,Baltimore Consulting,261400,Human Resources Temporary & Agency Staff ,Agency Staff,MH Team Managers,MH Team Managers,"81,652.00",100290,11708
06/03/2020,ZZH675677,1,9715,NHS Stockport CCG,260000,Human Resources  ,Other Payments,Proactive Care,Proactive Care,"127,955.00",100304,12829
06/03/2020,ZZH675694,1,10655,West March Systems Ltd,270000,Information Communication Technology  ,Information and Communications Technology,Contin Educ Service,Contin Educ Service,"12,000.00",402001,10511
09/03/2020,ZZH675717,1,8729,IS Consultancy (UK) Ltd t/a,190000,Facilities & Management Services  ,Office Expenses,#N/A,#N/A,"36,480.00",400700,C.10932.003
09/03/2020,ZZH675768,1,12417,Edge Training,260000,Human Resources  ,Staff Training,iBCF,iBCF,"5,940.00",102020,13000
10/03/2020,ZZH675804,1,13860,Howard Lynn Property Ltd,261400,Human Resources Temporary & Agency Staff ,Agency Staff,Property Client Acct,Property Client Acct,"6,366.05",100290,12328
10/03/2020,ZZH675806,1,371,GLOBAL OUTDOOR MEDIA LIMITED,190000,Facilities & Management Services  ,Publicity and Promotion,POD Printing,POD Printing,600.00,401800,11064
10/03/2020,ZZH675806,2,371,GLOBAL OUTDOOR MEDIA LIMITED,190000,Facilities & Management Services  ,Publicity and Promotion,POD Printing,POD Printing,"4,800.00",401800,11064
10/03/2020,ZZH675876,1,12269,PENARTH GROUP,261500,Human Resources Training & Conferences ,Fees and Charges,SEN Independent Sch,SEN Independent Sch,"5,261.49",401024,10372
10/03/2020,ZZH675883,1,5643,Lisclare Ltd,181800,Environmental Services Technical Equipment ,Furniture and Equipment,SEN Equipment,SEN Equipment,"3,156.00",400110,10324
10/03/2020,ZZH675883,2,5643,Lisclare Ltd,181800,Environmental Services Technical Equipment ,Furniture and Equipment,SEN Equipment,SEN Equipment,"1,144.80",400110,10324
10/03/2020,ZZH675883,3,5643,Lisclare Ltd,181800,Environmental Services Technical Equipment ,Furniture and Equipment,SEN Equipment,SEN Equipment,246.40,400110,10324
10/03/2020,ZZH675883,4,5643,Lisclare Ltd,181800,Environmental Services Technical Equipment ,Furniture and Equipment,SEN Equipment,SEN Equipment,204.80,400110,10324
10/03/2020,ZZH675883,5,5643,Lisclare Ltd,181800,Environmental Services Technical Equipment ,Furniture and Equipment,SEN Equipment,SEN Equipment,44.80,400110,10324
10/03/2020,ZZH675883,6,5643,Lisclare Ltd,181800,Environmental Services Technical Equipment ,Furniture and Equipment,SEN Equipment,SEN Equipment,102.40,400110,10324
10/03/2020,ZZH675883,7,5643,Lisclare Ltd,181800,Environmental Services Technical Equipment ,Furniture and Equipment,SEN Equipment,SEN Equipment,126.40,400110,10324
11/03/2020,ZZH675937,1,450,Leeds City Council,150000,Consultancy   ,Professional Fees,Business Intelligenc,Business Intelligenc,"90,000.00",401007,11872
11/03/2020,ZZH675951,1,6918,CYBER MEDIA SOLUTIONS,110000,Catering  ,Expenses and Allowances,IT Systems,IT Systems,"12,000.00",402202,12503
11/03/2020,ZZH675952,1,10678,Servelec Education Ltd,110000,Catering  ,Expenses and Allowances,IT Systems,IT Systems,"47,806.00",402202,12503
11/03/2020,ZZH675956,1,1722,The Together Trust Centre,320000,Social Community Care Supplies & Services  ,Care Payments,DP - Respite,DP - Respite,"6,750.00",530335,11513
11/03/2020,ZZH675968,1,3529,Totally Local Company Ltd,390000,"Works - Construction, Repair & Maintenance  ",Capital Expenditure - Works,#N/A,#N/A,"12,013.19",200304,C.01020.203
11/03/2020,ZZH675969,1,757,Transport for Greater Manchest,390000,Supplies and services,Supplies and services,#N/A,#N/A,"247,928.40",401600,C.01071.203
11/03/2020,ZZH675970,1,6748,GEORGE COX & SONS LTD,390000,Supplies and services,Supplies and services,#N/A,#N/A,"14,802.69",401600,C.01165.203
12/03/2020,ZZH675985,1,6748,GEORGE COX & SONS LTD,390000,Supplies and services,Supplies and services,Highway Structs R+R,Highway Structs R+R,"9,787.23",401600,11975
12/03/2020,ZZH676006,1,3529,Totally Local Company Ltd,182000,Environmental Services Waste Management ,Waste Management,Pymnt to contctr R+R,Pymnt to contctr R+R,"7,479,017.00",201804,10856
12/03/2020,ZZH676006,2,3529,Totally Local Company Ltd,181600,Environmental Services Street Cleansing ,Cleaning,Contrct P-St Cleansg,Contrct P-St Cleansg,"2,917,032.00",201606,10881
12/03/2020,ZZH676006,3,3529,Totally Local Company Ltd,181600,Environmental Services Street Cleansing ,Cleaning,Drainage Works,Drainage Works,"254,253.00",201606,12681
12/03/2020,ZZH676006,4,3529,Totally Local Company Ltd,230000,Highway Equipment & Materials�   ,Highways Maintenance,Gritting,Gritting,"382,715.00",202056,12033
12/03/2020,ZZH676006,5,3529,Totally Local Company Ltd,240000,Horticultural  ,Grounds Maintenance,SSK Contract SLA,SSK Contract SLA,"2,083,006.00",202030,11166
12/03/2020,ZZH676006,6,3529,Totally Local Company Ltd,230000,Highway Equipment & Materials�   ,Highways Maintenance,SLA Safety Detect R,SLA Safety Detect R,"1,636,758.00",202050,11984
12/03/2020,ZZH676006,7,3529,Totally Local Company Ltd,350000,Street & Traffic Management  ,Fixtures and Fittings,SLA Street Lighting,SLA Street Lighting,"971,785.00",201202,12026
12/03/2020,ZZH676006,8,3529,Totally Local Company Ltd,240000,Horticultural  ,Grounds Maintenance,SSK Contract SLA,SSK Contract SLA,"173,828.00",202030,11166
12/03/2020,ZZH676006,9,3529,Totally Local Company Ltd,240000,Horticultural  ,Grounds Maintenance,Arboricult Contr SSK,Arboricult Contr SSK,"380,095.00",202030,12821
12/03/2020,ZZH676006,10,3529,Totally Local Company Ltd,390000,"Works - Construction, Repair & Maintenance  ",Capital Expenditure - Works,#N/A,#N/A,"3,000,000.00",200304,C.00712.203
12/03/2020,ZZH676006,11,3529,Totally Local Company Ltd,390000,"Works - Construction, Repair & Maintenance  ",Capital Expenditure - Works,#N/A,#N/A,"500,000.00",200304,C.00705.203
12/03/2020,ZZH676006,12,3529,Totally Local Company Ltd,390000,"Works - Construction, Repair & Maintenance  ",Repairs and Maintenance,Patrol,Patrol,"281,403.00",200160,12823
12/03/2020,ZZH676006,13,3529,Totally Local Company Ltd,192200,Facilities & Management Services Security ,Security,CCTV-Control,CCTV-Control,"334,244.00",201204,12822
12/03/2020,ZZH676006,14,3529,Totally Local Company Ltd,202000,Financial Services Rents ,Rents,Operational Support,Operational Support,"69,000.00",200700,10924
12/03/2020,ZZH676006,15,3529,Totally Local Company Ltd,202000,Financial Services Rents ,Rents,Operational Support,Operational Support,"47,448.00",200700,10924
12/03/2020,ZZH676021,1,10652,Servelec Youth Services Ltd,110000,Catering  ,Expenses and Allowances,IT Systems,IT Systems,"11,230.00",402202,12503
12/03/2020,ZZH676022,1,13080,Skybound Therapies,320000,Social Community Care Supplies & Services  ,Care Payments,LD Care Purchasing,LD Care Purchasing,"10,000.00",530332,11837
13/03/2020,ZZH676089,1,35,CBC Computer Systems Ltd,270000,Information Communication Technology  ,Information and Communications Technology,Public Libraries Gen,Public Libraries Gen,"8,910.00",402001,11329
13/03/2020,ZZH676089,2,35,CBC Computer Systems Ltd,270000,Information Communication Technology  ,Information and Communications Technology,Public Libraries Gen,Public Libraries Gen,77.00,402001,11329
13/03/2020,ZZH676095,1,14149,Smoothwall Ltd,270000,Information Communication Technology  ,Information and Communications Technology,IT Infrastructure,IT Infrastructure,"19,600.00",402001,11324
13/03/2020,ZZH676096,1,13516,Faronics EMEA,270000,Information Communication Technology  ,Information and Communications Technology,IT Main,IT Main,"8,499.00",402001,11073
16/03/2020,ZZH676134,1,7512,Claire Turner Ltd,290000,Arts & Leisure Services  ,Publicity and Promotion,Arts Development,Arts Development,"5,400.00",401801,11384
16/03/2020,ZZH676135,1,9715,NHS Stockport CCG,260000,Human Resources  ,Other Payments,Quality Assurance,Quality Assurance,"19,800.00",100304,11453
16/03/2020,ZZH676136,1,1799,Stockport Homes,320000,Social Community Care Supplies & Services  ,Care Payments,Extra Care Hsg Block,Extra Care Hsg Block,"17,221.33",530328,12219
16/03/2020,ZZH676137,1,9715,NHS Stockport CCG,260000,Human Resources  ,Other Payments,Proactive Care,Proactive Care,"575,504.00",100304,12829
16/03/2020,ZZH676140,1,9715,NHS Stockport CCG,260000,Human Resources  ,Other Payments,iBCF,iBCF,"13,923.15",100304,13000
16/03/2020,ZZH676147,1,3681,Fischer Education Project Ltd,270000,Information Communication Technology  ,Information and Communications Technology,Business Intelligenc,Business Intelligenc,"13,207.98",402001,11872
16/03/2020,ZZH676161,1,8106,Tarmac Trading Ltd,390000,Supplies and services,Supplies and services,#N/A,#N/A,"51,855.89",401600,C.00994.203
16/03/2020,ZZH676162,1,82,Marwood Electrical Company Ltd,390000,"Works - Construction, Repair & Maintenance  ",Capital Expenditure - Works,#N/A,#N/A,"8,257.48",200304,C.01198.203
16/03/2020,ZZH676162,2,82,Marwood Electrical Company Ltd,390000,"Works - Construction, Repair & Maintenance  ",Capital Expenditure - Works,#N/A,#N/A,"77,182.16",200304,C.01198.203
16/03/2020,ZZH676162,3,82,Marwood Electrical Company Ltd,390000,"Works - Construction, Repair & Maintenance  ",Capital Expenditure - Works,#N/A,#N/A,"6,201.30",200304,C.01198.203
16/03/2020,ZZH676162,4,82,Marwood Electrical Company Ltd,390000,"Works - Construction, Repair & Maintenance  ",Capital Expenditure - Works,#N/A,#N/A,"16,567.65",200304,C.01198.203
16/03/2020,ZZH676162,5,82,Marwood Electrical Company Ltd,390000,"Works - Construction, Repair & Maintenance  ",Capital Expenditure - Works,#N/A,#N/A,"2,711.07",200304,C.01198.203
16/03/2020,ZZH676162,6,82,Marwood Electrical Company Ltd,390000,"Works - Construction, Repair & Maintenance  ",Capital Expenditure - Works,#N/A,#N/A,"29,603.70",200304,C.01198.203
16/03/2020,ZZH676163,1,6098,SWARCO Traffic Ltd,350000,Street & Traffic Management  ,Fixtures and Fittings,#N/A,#N/A,"35,814.00",201202,C.01295.203
16/03/2020,ZZH676172,1,1694,Network Rail Infras'ture Ltd,390000,"Works - Construction, Repair & Maintenance  ",Capital Expenditure - Works,#N/A,#N/A,"73,166.40",200304,C.00712.203
16/03/2020,ZZH676173,1,10674,Ortoo Technologies Ltd,200000,Financial Services  ,Fees and Charges,SI - School Govern,SI - School Govern,"10,500.00",402401,10755
17/03/2020,ZZH676203,1,1816,Seashell Trust,261500,Human Resources Training & Conferences ,Fees and Charges,OLA pupils,OLA pupils,"35,015.17",401024,10371
17/03/2020,ZZH676231,1,2927,XMA Ltd,270000,Information Communication Technology  ,Information and Communications Technology,IT Traded (TLC),IT Traded (TLC),"5,357.80",402001,11338
17/03/2020,ZZH676231,2,2927,XMA Ltd,270000,Information Communication Technology  ,Information and Communications Technology,IT Traded (TLC),IT Traded (TLC),35.00,402001,11338
17/03/2020,ZZH676231,3,2927,XMA Ltd,270000,Information Communication Technology  ,Information and Communications Technology,IT Traded (TLC),IT Traded (TLC),35.00,402001,11338
17/03/2020,ZZH676231,4,2927,XMA Ltd,270000,Information Communication Technology  ,Information and Communications Technology,IT Traded (TLC),IT Traded (TLC),164.90,402001,11338
17/03/2020,ZZH676231,5,2927,XMA Ltd,270000,Information Communication Technology  ,Information and Communications Technology,IT Traded (TLC),IT Traded (TLC),122.20,402001,11338
18/03/2020,ZZH676261,1,1339,Stockport NHS Foundation Trust,310000,Healthcare  ,Third party payments - Public Sector,Werneth Programme,Werneth Programme,"16,453.00",500402,13030
18/03/2020,ZZH676265,1,683,AECOM Limited,150000,Consultancy   ,Professional Fees,Local Plan Project,Local Plan Project,"11,000.00",401007,12936
18/03/2020,ZZH676266,1,1799,Stockport Homes,150000,Consultancy   ,Professional Fees,Preventative Tech'Gy,Preventative Tech'Gy,"186,470.50",401020,11011
18/03/2020,ZZH676268,1,1058,Hemming Group Ltd,190000,Facilities & Management Services  ,Publicity and Promotion,POD Communications,POD Communications,"6,000.00",401803,11323
18/03/2020,ZZH676268,2,1058,Hemming Group Ltd,190000,Facilities & Management Services  ,Publicity and Promotion,POD Communications,POD Communications,"4,040.00",401803,11323
18/03/2020,ZZH676284,1,6748,GEORGE COX & SONS LTD,391114,"Works - Construction, Repair & Maintenance Buildings Surveys",Capital Expenditure - Fees,#N/A,#N/A,"12,269.33",200316,C.01270.202
19/03/2020,ZZH676290,1,6940,IAE,240000,Horticultural  ,Grounds Maintenance,#N/A,#N/A,"5,154.44",202032,C.10775
19/03/2020,ZZH676357,1,10858,Acorn Recovery Projects,200000,Financial Services  ,Fees and Charges,Contin Educ Service,Contin Educ Service,"18,750.00",401202,10511
19/03/2020,ZZH676371,1,3250,Lanes Landscapes Ltd,240000,Horticultural  ,Grounds Maintenance,Parks General,Parks General,"6,086.00",202032,11191
19/03/2020,ZZH676384,1,1339,Stockport NHS Foundation Trust,310000,Healthcare  ,Third party payments - Public Sector,Werneth Programme,Werneth Programme,"64,146.00",500402,13030
19/03/2020,ZZH676384,2,1339,Stockport NHS Foundation Trust,310000,Healthcare  ,Third party payments - Public Sector,Werneth Programme,Werneth Programme,"37,379.00",500402,13030
20/03/2020,ZZH676414,1,3292,Reach Publishing Services Ltd,190000,Facilities & Management Services  ,Publicity and Promotion,Highways-Network Man,Highways-Network Man,"7,000.00",401800,11968
20/03/2020,ZZH676414,2,3292,Reach Publishing Services Ltd,190000,Facilities & Management Services  ,Publicity and Promotion,Highways-Network Man,Highways-Network Man,"7,000.00",401800,11968
20/03/2020,ZZH676414,3,3292,Reach Publishing Services Ltd,190000,Facilities & Management Services  ,Publicity and Promotion,Highways-Network Man,Highways-Network Man,"7,000.00",401800,11968
20/03/2020,ZZH676414,4,3292,Reach Publishing Services Ltd,190000,Facilities & Management Services  ,Publicity and Promotion,Highways-Network Man,Highways-Network Man,"7,000.00",401800,11968
20/03/2020,ZZH676416,1,12608,Liquidlogic Limited,270000,Information Communication Technology  ,Information and Communications Technology,IT Systems,IT Systems,"107,948.38",402002,12503
20/03/2020,ZZH676465,1,865,Bethell Construction Ltd,390000,Supplies and services,Supplies and services,#N/A,#N/A,"76,739.62",401600,C.01171.203
23/03/2020,ZZH676480,1,13124,Social Finance Limited,150000,Consultancy   ,Professional Fees,Business Intelligenc,Business Intelligenc,"34,953.00",401007,11872
23/03/2020,ZZH676487,1,12608,Liquidlogic Limited,270000,Information Communication Technology  ,Information and Communications Technology,IT Liquid Logic Proj,IT Liquid Logic Proj,"2,000.00",402002,12958
23/03/2020,ZZH676487,2,12608,Liquidlogic Limited,270000,Information Communication Technology  ,Information and Communications Technology,IT Liquid Logic Proj,IT Liquid Logic Proj,"5,000.00",402002,12958
23/03/2020,ZZH676509,1,9211,PA Charnley T/A Dirtworks BMX,240000,Horticultural  ,Grounds Maintenance,#N/A,#N/A,"5,790.00",202032,C.10775
23/03/2020,ZZH676514,1,706,Woodsons Cycles,181800,Environmental Services Technical Equipment ,Furniture and Equipment,Invest in Growth,Invest in Growth,"5,330.14",400110,10091
23/03/2020,ZZH676515,1,12269,PENARTH GROUP,261500,Human Resources Training & Conferences ,Fees and Charges,SEN Independent Sch,SEN Independent Sch,"6,235.84",401024,10372
23/03/2020,ZZH676530,1,12608,Liquidlogic Limited,270000,Information Communication Technology  ,Information and Communications Technology,IT Liquid Logic Proj,IT Liquid Logic Proj,"31,100.00",402002,12958
24/03/2020,ZZH676565,1,12608,Liquidlogic Limited,270000,Information Communication Technology  ,Information and Communications Technology,IT Liquid Logic Proj,IT Liquid Logic Proj,"47,705.64",402002,12958
24/03/2020,ZZH676565,2,12608,Liquidlogic Limited,270000,Information Communication Technology  ,Information and Communications Technology,IT Liquid Logic Proj,IT Liquid Logic Proj,"19,404.60",402002,12958
24/03/2020,ZZH676565,3,12608,Liquidlogic Limited,270000,Information Communication Technology  ,Information and Communications Technology,IT Liquid Logic Proj,IT Liquid Logic Proj,"14,500.20",402002,12958
24/03/2020,ZZH676567,1,6967,Wilde Consultants Ltd,150000,Consultancy   ,Professional Fees,Design Frmwk Staff,Design Frmwk Staff,"26,906.50",401020,11965
25/03/2020,ZZH676613,1,4272,Civica UK Ltd,390000,Supplies and services,Supplies and services,Bentax,Bentax,"25,000.00",401600,11139
25/03/2020,ZZH676617,1,82,Marwood Electrical Company Ltd,390000,"Works - Construction, Repair & Maintenance  ",Capital Expenditure - Works,#N/A,#N/A,"11,081.20",200304,C.01220.203
26/03/2020,ZZH676623,1,3291,Leica Geosystems Ltd,390000,Supplies and services,Supplies and services,D & I Team,D & I Team,"7,486.00",401600,11960
26/03/2020,ZZH676623,2,3291,Leica Geosystems Ltd,390000,Supplies and services,Supplies and services,#N/A,#N/A,"5,150.00",401600,C.11502.120
26/03/2020,ZZH676626,1,13308,"The Sport, Leisure and Culture",390000,"Works - Construction, Repair & Maintenance  ",Fees and Charges,Sports Client,Sports Client,"39,009.00",401021,11309
26/03/2020,ZZH676629,1,6748,GEORGE COX & SONS LTD,390000,Supplies and services,Supplies and services,#N/A,#N/A,"5,956.33",401600,C.01271.201
26/03/2020,ZZH676631,1,6748,GEORGE COX & SONS LTD,390000,Supplies and services,Supplies and services,#N/A,#N/A,"5,552.30",401600,C.01316.201
26/03/2020,ZZH676636,1,12237,"CGL (Change, Grow, Live)",310000,Healthcare  ,Third party payments - Public Sector,PH-Drug & Alcohol,PH-Drug & Alcohol,"25,384.00",500402,12731
26/03/2020,ZZH676652,1,35,CBC Computer Systems Ltd,270000,Information Communication Technology  ,Information and Communications Technology,IT Main,IT Main,"9,780.00",402001,11073
26/03/2020,ZZH676653,1,757,Transport for Greater Manchest,390000,"Works - Construction, Repair & Maintenance  ",Capital Expenditure - Works,#N/A,#N/A,"6,900.00",200304,C.00710.203
26/03/2020,ZZH676676,1,82,Marwood Electrical Company Ltd,390000,"Works - Construction, Repair & Maintenance  ",Capital Expenditure - Works,#N/A,#N/A,"8,257.48",200304,C.01198.203
26/03/2020,ZZH676676,2,82,Marwood Electrical Company Ltd,390000,"Works - Construction, Repair & Maintenance  ",Capital Expenditure - Works,#N/A,#N/A,"77,182.16",200304,C.01198.203
26/03/2020,ZZH676676,3,82,Marwood Electrical Company Ltd,390000,"Works - Construction, Repair & Maintenance  ",Capital Expenditure - Works,#N/A,#N/A,"6,201.30",200304,C.01198.203
26/03/2020,ZZH676676,4,82,Marwood Electrical Company Ltd,390000,"Works - Construction, Repair & Maintenance  ",Capital Expenditure - Works,#N/A,#N/A,"16,567.65",200304,C.01198.203
26/03/2020,ZZH676676,5,82,Marwood Electrical Company Ltd,390000,"Works - Construction, Repair & Maintenance  ",Capital Expenditure - Works,#N/A,#N/A,"2,711.07",200304,C.01198.203
26/03/2020,ZZH676676,6,82,Marwood Electrical Company Ltd,390000,"Works - Construction, Repair & Maintenance  ",Capital Expenditure - Works,#N/A,#N/A,"29,603.70",200304,C.01198.203
26/03/2020,ZZH676677,1,6967,Wilde Consultants Ltd,150000,Consultancy   ,Professional Fees,Network Assets Staff,Network Assets Staff,"23,850.00",401007,11959
26/03/2020,ZZH676678,1,6967,Wilde Consultants Ltd,150000,Consultancy   ,Professional Fees,Network Assets Staff,Network Assets Staff,"17,100.00",401007,11959
27/03/2020,ZZH676682,1,11512,Education & Skills Funding Agy,201100,Financial Services Audit ,Professional Fees,Contin Educ Service,Contin Educ Service,"53,357.88",401029,10511
27/03/2020,ZZH676684,1,7025,CBRE Limited,150000,Consultancy   ,Professional Fees,MDC Mayoral DC,MDC Mayoral DC,"27,000.00",401007,13033
27/03/2020,ZZH676693,1,82,Marwood Electrical Company Ltd,390000,"Works - Construction, Repair & Maintenance  ",Capital Expenditure - Works,#N/A,#N/A,"12,049.18",200304,C.01198.203
27/03/2020,ZZH676693,2,82,Marwood Electrical Company Ltd,390000,"Works - Construction, Repair & Maintenance  ",Capital Expenditure - Works,#N/A,#N/A,"75,834.00",200304,C.01198.203
27/03/2020,ZZH676693,3,82,Marwood Electrical Company Ltd,390000,"Works - Construction, Repair & Maintenance  ",Capital Expenditure - Works,#N/A,#N/A,"6,024.12",200304,C.01198.203
27/03/2020,ZZH676693,4,82,Marwood Electrical Company Ltd,390000,"Works - Construction, Repair & Maintenance  ",Capital Expenditure - Works,#N/A,#N/A,"3,213.12",200304,C.01198.203
27/03/2020,ZZH676693,5,82,Marwood Electrical Company Ltd,390000,"Works - Construction, Repair & Maintenance  ",Capital Expenditure - Works,#N/A,#N/A,"4,819.68",200304,C.01198.203
27/03/2020,ZZH676693,6,82,Marwood Electrical Company Ltd,390000,"Works - Construction, Repair & Maintenance  ",Capital Expenditure - Works,#N/A,#N/A,"24,136.35",200304,C.01198.203
27/03/2020,ZZH676694,1,82,Marwood Electrical Company Ltd,390000,"Works - Construction, Repair & Maintenance  ",Capital Expenditure - Works,#N/A,#N/A,"11,543.62",200304,C.01198.203
27/03/2020,ZZH676694,2,82,Marwood Electrical Company Ltd,390000,"Works - Construction, Repair & Maintenance  ",Capital Expenditure - Works,#N/A,#N/A,421.30,200304,C.01198.203
27/03/2020,ZZH676694,3,82,Marwood Electrical Company Ltd,390000,"Works - Construction, Repair & Maintenance  ",Capital Expenditure - Works,#N/A,#N/A,"1,600.94",200304,C.01198.203
27/03/2020,ZZH676694,4,82,Marwood Electrical Company Ltd,390000,"Works - Construction, Repair & Maintenance  ",Capital Expenditure - Works,#N/A,#N/A,"3,100.65",200304,C.01198.203
27/03/2020,ZZH676696,1,8549,Lucy Zodion Ltd,390000,"Works - Construction, Repair & Maintenance  ",Capital Expenditure - Works,#N/A,#N/A,"125,000.00",200304,C.01198.203
27/03/2020,ZZH676706,1,6342,GREATER MANCHESTER POLICE AUTH,999999,Fees and Charges,Fees and Charges,YOS Non-Staffing,YOS Non-Staffing,"25,000.00",402404,11503
27/03/2020,ZZH676707,1,6189,CACI SoftSmart Ltd,270000,Information Communication Technology  ,Information and Communications Technology,YOS Non-Staffing,YOS Non-Staffing,"12,506.96",402001,11503
27/03/2020,ZZH676707,2,6189,CACI SoftSmart Ltd,270000,Information Communication Technology  ,Information and Communications Technology,YOS Non-Staffing,YOS Non-Staffing,"4,150.00",402001,11503
27/03/2020,ZZH676725,1,7025,CBRE Limited,150000,Consultancy   ,Professional Fees,Merseyway Shop Ctre,Merseyway Shop Ctre,"53,000.00",401020,12866
27/03/2020,ZZH676725,2,7025,CBRE Limited,150000,Consultancy   ,Professional Fees,Merseyway Shop Ctre,Merseyway Shop Ctre,"6,360.00",401020,12866
30/03/2020,ZZH676765,1,8163,Starting Point Community Learn,150000,Consultancy   ,Professional Fees,*DbD - Phase 2,*DbD - Phase 2,"33,500.00",401007,12961
30/03/2020,ZZH676767,1,1722,The Together Trust Centre,261500,Human Resources Training & Conferences ,Fees and Charges,SEN NMSS School Fees,SEN NMSS School Fees,"5,172.30",401024,12710
30/03/2020,ZZH676786,1,9715,NHS Stockport CCG,260000,Human Resources  ,Other Payments,Proactive Care,Proactive Care,"321,883.00",100304,12829
30/03/2020,ZZH676787,1,9715,NHS Stockport CCG,260000,Human Resources  ,Other Payments,COVID-19,COVID-19,"38,104.26",100304,12926
31/03/2020,ZZH676792,1,10858,Acorn Recovery Projects,261500,Human Resources Training & Conferences ,Fees and Charges,Contin Educ Service,Contin Educ Service,"18,750.00",401024,10511
31/03/2020,ZZH676796,1,6967,Wilde Consultants Ltd,150000,Consultancy   ,Professional Fees,Design Frmwk Staff,Design Frmwk Staff,"10,930.63",401020,11965
31/03/2020,ZZH676797,1,6967,Wilde Consultants Ltd,150000,Consultancy   ,Professional Fees,Design Frmwk Staff,Design Frmwk Staff,"16,510.13",401020,11965
31/03/2020,ZZH676798,1,6967,Wilde Consultants Ltd,150000,Consultancy   ,Professional Fees,Design Frmwk Staff,Design Frmwk Staff,"16,943.13",401020,11965
31/03/2020,ZZH676799,1,6967,Wilde Consultants Ltd,150000,Consultancy   ,Professional Fees,Design Frmwk Staff,Design Frmwk Staff,"8,283.60",401020,11965
31/03/2020,ZZH676800,1,6967,Wilde Consultants Ltd,150000,Consultancy   ,Professional Fees,Design Frmwk Staff,Design Frmwk Staff,"25,356.13",401020,11965
31/03/2020,ZZH676801,1,6138,Equisys Timemaster Ltd,270000,Information Communication Technology  ,Information and Communications Technology,D & I Team,D & I Team,"22,550.88",402001,11960
31/03/2020,ZZH676819,1,4272,Civica UK Ltd,999999,UNCLASSIFIED  ,MISCLASSIFIED? CHECK BEFORE PUBLICATION,Bentax,Bentax,"25,000.00",601401,11139
31/03/2020,ZZH676829,1,4272,Civica UK Ltd,270000,Information Communication Technology  ,Information and Communications Technology,Bentax,Bentax,"7,500.00",402010,11139
31/03/2020,ZZH676833,1,9715,NHS Stockport CCG,310000,Healthcare  ,Third party payments - Public Sector,Partners In Practice,Partners In Practice,"29,000.00",500402,12997
31/03/2020,ZZH676834,1,1339,Stockport NHS Foundation Trust,310000,Healthcare  ,Third party payments - Public Sector,Partners In Practice,Partners In Practice,"29,000.00",500402,12997
07/01/2020,ZZP672610,1,4708,The Dodd Group,210000,Furniture & Soft Furnishings  ,Furniture and Equipment,Hatworks,Hatworks,"16,463.82",400105,11342
09/01/2020,ZZP672732,1,13099,ROBERTSON FACILITIES MANAGEMEN,390000,"Works - Construction, Repair & Maintenance  ",Repairs and Maintenance,#N/A,#N/A,"2,832.27",200126,C.11508.001
09/01/2020,ZZP672732,1,13099,ROBERTSON FACILITIES MANAGEMEN,390000,"Works - Construction, Repair & Maintenance  ",Repairs and Maintenance,#N/A,#N/A,"3,164.35",200126,C.11508.005
09/01/2020,ZZP672732,1,13099,ROBERTSON FACILITIES MANAGEMEN,390000,"Works - Construction, Repair & Maintenance  ",Repairs and Maintenance,#N/A,#N/A,"3,259.18",200126,C.11508.002
09/01/2020,ZZP672732,1,13099,ROBERTSON FACILITIES MANAGEMEN,390000,"Works - Construction, Repair & Maintenance  ",Repairs and Maintenance,#N/A,#N/A,"4,270.88",200126,C.11508.006
09/01/2020,ZZP672732,1,13099,ROBERTSON FACILITIES MANAGEMEN,390000,"Works - Construction, Repair & Maintenance  ",Repairs and Maintenance,#N/A,#N/A,"4,611.82",200126,C.11508.004
09/01/2020,ZZP672732,1,13099,ROBERTSON FACILITIES MANAGEMEN,390000,"Works - Construction, Repair & Maintenance  ",Repairs and Maintenance,#N/A,#N/A,"6,171.45",200126,C.11508.001
09/01/2020,ZZP672732,1,13099,ROBERTSON FACILITIES MANAGEMEN,390000,"Works - Construction, Repair & Maintenance  ",Repairs and Maintenance,#N/A,#N/A,"7,079.34",200126,C.11507.003
09/01/2020,ZZP672732,1,13099,ROBERTSON FACILITIES MANAGEMEN,390000,"Works - Construction, Repair & Maintenance  ",Repairs and Maintenance,#N/A,#N/A,"7,207.60",200126,C.11508.007
09/01/2020,ZZP672732,1,13099,ROBERTSON FACILITIES MANAGEMEN,390000,"Works - Construction, Repair & Maintenance  ",Repairs and Maintenance,#N/A,#N/A,"7,836.87",200126,C.11508.002
09/01/2020,ZZP672732,1,13099,ROBERTSON FACILITIES MANAGEMEN,390000,"Works - Construction, Repair & Maintenance  ",Repairs and Maintenance,#N/A,#N/A,"15,787.61",200126,C.11506
17/01/2020,ZZP673114,1,8733,ELF SOFTWARE LTD,270000,Information Communication Technology  ,Information and Communications Technology,Property Client Acct,Property Client Acct,"6,749.00",402010,12328
22/01/2020,ZZP673361,1,13155,Trace Solutions,270000,Information Communication Technology  ,Information and Communications Technology,Property Client Acct,Property Client Acct,"12,675.12",402010,12328
27/01/2020,ZZP673503,1,9973,Truline Construction & Interio,390000,"Works - Construction, Repair & Maintenance  ",Repairs and Maintenance,#N/A,#N/A,"44,500.00",200123,C.11504.013
03/02/2020,ZZP673841,1,13207,H Bell & Sons Ltd,390000,"Works - Construction, Repair & Maintenance  ",Repairs and Maintenance,#N/A,#N/A,"57,187.71",200123,C.11508.003
04/02/2020,ZZP673928,1,13862,David Trowler Associates,390000,"Works - Construction, Repair & Maintenance  ",Repairs and Maintenance,#N/A,#N/A,"13,390.00",200123,C.10310.124
04/02/2020,ZZP673928,1,13862,David Trowler Associates,390000,"Works - Construction, Repair & Maintenance  ",Repairs and Maintenance,#N/A,#N/A,"13,390.00",200123,C.10326.229
04/02/2020,ZZP673930,1,12902,ECS Consultants Limited,390000,"Works - Construction, Repair & Maintenance  ",Repairs and Maintenance,#N/A,#N/A,"15,895.00",200123,C.11502.113
05/02/2020,ZZP673984,1,2438,J Greenwood (Builders) Ltd,390000,"Works - Construction, Repair & Maintenance  ",Repairs and Maintenance,#N/A,#N/A,"46,215.00",200123,C.11508.003
06/02/2020,ZZP674072,1,13862,David Trowler Associates,390000,"Works - Construction, Repair & Maintenance  ",Repairs and Maintenance,#N/A,#N/A,"29,945.00",200123,C.11502.069
07/02/2020,ZZP674156,1,2388,Young & Company,390000,"Works - Construction, Repair & Maintenance  ",Repairs and Maintenance,#N/A,#N/A,"38,128.11",200123,C.11502.111
12/02/2020,ZZP674362,1,12630,J Freeley Ltd,181000,Environmental Services Demolition & Asbestos Removal ,Capital Expenditure - Works,#N/A,#N/A,"6,400.00",200308,C.11502.083
18/02/2020,ZZP674725,1,9973,Truline Construction & Interio,390000,"Works - Construction, Repair & Maintenance  ",Repairs and Maintenance,MDC Mayoral DC,MDC Mayoral DC,"48,689.00",200123,13033
20/02/2020,ZZP674852,1,13005,AHR BUILDING CONSULTANCY LTD,390000,"Works - Construction, Repair & Maintenance  ",Repairs and Maintenance,#N/A,#N/A,"53,314.00",200123,C.10335.118
21/02/2020,ZZP674872,1,1799,Stockport Homes,390000,"Works - Construction, Repair & Maintenance  ",Capital Expenditure - Works,#N/A,#N/A,"8,980.00",200311,C.11502.097
21/02/2020,ZZP674893,1,14098,Rider Levett Bucknall UK Limit,390000,"Works - Construction, Repair & Maintenance  ",Repairs and Maintenance,#N/A,#N/A,"15,885.00",200123,C.11502.113
21/02/2020,ZZP674900,1,2479,JR Foy and Son Ltd,320000,Social Community Care Supplies & Services  ,Care Payments,SHV CSC Locality Lea,SHV CSC Locality Lea,"81,700.32",530351,11514
24/02/2020,ZZP674931,1,14097,The Vinden Partnership,390000,"Works - Construction, Repair & Maintenance  ",Repairs and Maintenance,#N/A,#N/A,"43,900.00",200123,C.10335.118
04/03/2020,ZZP675459,1,1799,Stockport Homes,390000,"Works - Construction, Repair & Maintenance  ",Capital Expenditure - Works,#N/A,#N/A,"14,539.00",200311,C.11502.097
10/03/2020,ZZP675805,1,13069,W H Good Ltd,390000,"Works - Construction, Repair & Maintenance  ",Repairs and Maintenance,#N/A,#N/A,"49,645.00",200123,C.11508.003
12/03/2020,ZZP675979,1,628,Life Leisure,390000,"Works - Construction, Repair & Maintenance  ",Repairs and Maintenance,#N/A,#N/A,"22,730.88",200123,C.11508.007
12/03/2020,ZZP676034,1,14147,Sound Interiors Ltd,390000,"Works - Construction, Repair & Maintenance  ",Repairs and Maintenance,#N/A,#N/A,"24,126.63",200127,C.10408.109
17/03/2020,ZZP676212,1,2306,Avison Young (UK) Limited,390000,"Works - Construction, Repair & Maintenance  ",Repairs and Maintenance,#N/A,#N/A,"5,000.00",200123,C.10408.166
24/03/2020,ZZP676557,1,3421,Symetri Ltd,270000,Information Communication Technology  ,Information and Communications Technology,Property Client Acct,Property Client Acct,"5,158.50",402001,12328
24/03/2020,ZZP676557,2,3421,Symetri Ltd,270000,Information Communication Technology  ,Information and Communications Technology,Property Client Acct,Property Client Acct,"2,840.00",402001,12328
